Body Name,Body,Service Division Label,Service Division Code,Organisational Unit,Expenditure Category,Expenditure Code,CIPFA detailed expediture type,CIPFA detailed expediture code,Narrative,Date,Transaction number,Net Amount,Capital and Revenue,Supplier Name,Supplier ID
Chorley Borough Council,http://statistics.data.gov.uk/id/local-authority/30UE,Unapportionable Central OHeads,1009,Policy & Performance,Exhibitions & Special Events,40158,Miscellaneous Expenses,5034,"Live broadcast, children`s activities and airtime for summer events",05/09/2014,97498,"2,900.00",Revenue,107 The Bee,51152
Chorley Borough Council,http://statistics.data.gov.uk/id/local-authority/30UE,Homelessness,1075,Housing,Grants To Other Organisations,40127,Grants and Subscriptions,5031,Provision of accomodation finding service with enhanced rental bond Q3,05/09/2014,97497,"11,150.00",Revenue,AAAW Ltd,64261
Chorley Borough Council,http://statistics.data.gov.uk/id/local-authority/30UE,Democratic Represent and  Mgnt,1007,Governance,Other Fees,40212,Miscellaneous Expenses,5034,"Bar fee for events in July 2014 - 11th, 12th, 24th and 25th.",03/09/2014,97468,260.00,Revenue,Ace Bars Ltd,54338
Chorley Borough Council,http://statistics.data.gov.uk/id/local-authority/30UE,Democratic Represent and  Mgnt,1007,Streetscene & Leisure Contracts,External Contractor - Trust or Charity,50008,Private Contractors,5042,Amended Active Nation Monthly Management Fee For the period May 2014 - March 2015 Monthly Fee to be invoiced,05/09/2014,97464,"32,556.10",Revenue,Active Nation UK Ltd,17144
Chorley Borough Council,http://statistics.data.gov.uk/id/local-authority/30UE,Democratic Represent and  Mgnt,1007,Streetscene & Leisure Contracts,External Contractor - Trust or Charity,50008,Private Contractors,5042,Amended Active Nation Monthly Management Fee For the period May 2014 - March 2015 Monthly Fee to be invoiced ,26/09/2014,98003,"32,556.10",Revenue,Active Nation UK Ltd,17144
Chorley Borough Council,http://statistics.data.gov.uk/id/local-authority/30UE,Capital,Capital,Streetscene & Leisure Contracts,Main Contractor,3007,Capital Expenditure,Capital,Materials - Rebuild of existing flight of steps leading from woods in Asltey Park to the old pets corner area using stone,12/09/2014,97624,"1,925.00",Capital,Adlington Dry Stone Walling,63372
Chorley Borough Council,http://statistics.data.gov.uk/id/local-authority/30UE,Capital,Capital,Streetscene & Leisure Contracts,Main Contractor,3007,Capital Expenditure,Capital,Labour,12/09/2014,97624,"3,825.00",Capital,Adlington Dry Stone Walling,63372
Chorley Borough Council,http://statistics.data.gov.uk/id/local-authority/30UE,Unapportionable Central OHeads,1009,Governance,Burglar Alarms & Security Systems,20075,Fixtures and Fittings,5010,"Fire alarms, intruder alarms, access system and monitoring work at the Town Hall.",03/09/2014,97349,459.00,Revenue,ADT Fire & Security,16645
Chorley Borough Council,http://statistics.data.gov.uk/id/local-authority/30UE,Surplus or Deficit on Trading,1019,Governance,Miscellaneous Expenses,40200,Miscellaneous Expenses,5034,"Market Walk ExtensionCAD Layout and CGI views",10/09/2014,97646,"7,010.00",Revenue,AEW Architects & Designers Ltd,66520
Chorley Borough Council,http://statistics.data.gov.uk/id/local-authority/30UE,Community Development,1097,Governance,Grants To Other Organisations,40127,Grants and Subscriptions,5031,Councillor Community Grant,17/09/2014,97731,250.00,Revenue,Air Cadet Organisation,66815
Chorley Borough Council,http://statistics.data.gov.uk/id/local-authority/30UE,Unapportionable Central OHeads,1009,"Customer, ICT & Transactional",Bank Charges,40151,Miscellaneous Expenses,5034,CHBC,05/09/2014,97466,43.97,Revenue,Allpay Net Ltd,17242
Chorley Borough Council,http://statistics.data.gov.uk/id/local-authority/30UE,Unapportionable Central OHeads,1009,"Customer, ICT & Transactional",Bank Charges,40151,Miscellaneous Expenses,5034,CHBC,05/09/2014,97466,"1,951.68",Revenue,Allpay Net Ltd,17242
Chorley Borough Council,http://statistics.data.gov.uk/id/local-authority/30UE,Corporate Management,1008,Shared Service Arrangement,Car Leasing Payment,14100,Direct Employee Expenses,5001,Direct Employee Expenses,17/09/2014,97628,284.89,Revenue,Alphabet (Uk) Fleet Management Ltd,16651
Chorley Borough Council,http://statistics.data.gov.uk/id/local-authority/30UE,Corporate Management,1008,Shared Service Arrangement,Car Leasing Payment,14100,Direct Employee Expenses,5001,Direct Employee Expenses,17/09/2014,97628,24.80,Revenue,Alphabet (Uk) Fleet Management Ltd,16651
Chorley Borough Council,http://statistics.data.gov.uk/id/local-authority/30UE,Unapportionable Central OHeads,1009,Shared Service Arrangement,Car Leasing Payment,14100,Direct Employee Expenses,5001,Direct Employee Expenses,17/09/2014,97628,183.33,Revenue,Alphabet (Uk) Fleet Management Ltd,16651
Chorley Borough Council,http://statistics.data.gov.uk/id/local-authority/30UE,Unapportionable Central OHeads,1009,Shared Service Arrangement,Car Leasing Payment,14100,Direct Employee Expenses,5001,Direct Employee Expenses,17/09/2014,97628,16.91,Revenue,Alphabet (Uk) Fleet Management Ltd,16651
Chorley Borough Council,http://statistics.data.gov.uk/id/local-authority/30UE,Unapportionable Central OHeads,1009,Shared Service Arrangement,Car Leasing Payment,14100,Direct Employee Expenses,5001,Direct Employee Expenses,17/09/2014,97628,338.52,Revenue,Alphabet (Uk) Fleet Management Ltd,16651
Chorley Borough Council,http://statistics.data.gov.uk/id/local-authority/30UE,Unapportionable Central OHeads,1009,Shared Service Arrangement,Car Leasing Payment,14100,Direct Employee Expenses,5001,Direct Employee Expenses,17/09/2014,97628,27.59,Revenue,Alphabet (Uk) Fleet Management Ltd,16651
Chorley Borough Council,http://statistics.data.gov.uk/id/local-authority/30UE,Unapportionable Central OHeads,1009,Shared Service Arrangement,Car Leasing Payment,14100,Direct Employee Expenses,5001,Direct Employee Expenses,17/09/2014,97628,279.93,Revenue,Alphabet (Uk) Fleet Management Ltd,16651
Chorley Borough Council,http://statistics.data.gov.uk/id/local-authority/30UE,Unapportionable Central OHeads,1009,Shared Service Arrangement,Car Leasing Payment,14100,Direct Employee Expenses,5001,Direct Employee Expenses,17/09/2014,97628,25.30,Revenue,Alphabet (Uk) Fleet Management Ltd,16651
Chorley Borough Council,http://statistics.data.gov.uk/id/local-authority/30UE,Unapportionable Central OHeads,1009,Shared Service Arrangement,Car Leasing Payment,14100,Direct Employee Expenses,5001,Direct Employee Expenses,17/09/2014,97628,372.98,Revenue,Alphabet (Uk) Fleet Management Ltd,16651
Chorley Borough Council,http://statistics.data.gov.uk/id/local-authority/30UE,Unapportionable Central OHeads,1009,Shared Service Arrangement,Car Leasing Payment,14100,Direct Employee Expenses,5001,Direct Employee Expenses,17/09/2014,97628,34.65,Revenue,Alphabet (Uk) Fleet Management Ltd,16651
Chorley Borough Council,http://statistics.data.gov.uk/id/local-authority/30UE,Unapportionable Central OHeads,1009,Governance,Cleaning Materials,40019,"Equipment, Furniture & Materia",5023,Cleaning materials,19/09/2014,97868,"1,541.09",Revenue,Amtoll Ltd,21738
Chorley Borough Council,http://statistics.data.gov.uk/id/local-authority/30UE,Economic Development,1096,Economic Development,Cleaning Materials,40019,"Equipment, Furniture & Materia",5023,Please supply items as per email,17/09/2014,97869,497.39,Revenue,Amtoll Ltd,21738
Chorley Borough Council,http://statistics.data.gov.uk/id/local-authority/30UE,Economic Development,1096,Economic Development,Grants To Other Organisations,40127,Grants and Subscriptions,5031,Starting in Business Grant,19/09/2014,97888,250.00,Revenue,NAME REDACTED,67047
Chorley Borough Council,http://statistics.data.gov.uk/id/local-authority/30UE,Flood Defence & Land Drainage,1046,Health Environment & Neighbourhoods,Children's Activities,40188,Miscellaneous Expenses,5034,Delivery of outdoor adventure day on Friday 8th August ,03/09/2014,97421,340.00,Revenue,Anderton Centre - LOAI,56108
Chorley Borough Council,http://statistics.data.gov.uk/id/local-authority/30UE,Homelessness,1075,Housing,Fixtures & Fittings - Purchase,20027,Fixtures and Fittings,5010,Argos Value Range AUCFF4885 Under Counter Fridge Freezer. 129.99 each.,12/09/2014,97473,"1,299.96",Revenue,Argos Business Solutions,16213
Chorley Borough Council,http://statistics.data.gov.uk/id/local-authority/30UE,Homelessness,1075,Housing,Fixtures & Fittings - Purchase,20027,Fixtures and Fittings,5010,Argos Delivery Charge,12/09/2014,97473,7.40,Revenue,Argos Business Solutions,16213
Chorley Borough Council,http://statistics.data.gov.uk/id/local-authority/30UE,Service Management & Support,1009,Streetscene & Leisure Contracts,Supplies-Grounds Maintenance,40025,"Equipment, Furniture & Materia",5023,Manufacture and supply 5 aside goal posts and sockets for jubilee rec,24/09/2014,97933,326.00,Revenue,Ark Welding Ltd,18154
Chorley Borough Council,http://statistics.data.gov.uk/id/local-authority/30UE,Service Management & Support,1009,Streetscene & Leisure Contracts,Supplies-Grounds Maintenance,40025,"Equipment, Furniture & Materia",5023,Manufacture and supply memorial benches for Chorley Council as requested,24/09/2014,97940,350.00,Revenue,Ark Welding Ltd,18154
Chorley Borough Council,http://statistics.data.gov.uk/id/local-authority/30UE,Planning Policy,1092,Shared Service Arrangement,Car Leasing Payment,14100,Direct Employee Expenses,5001,Direct Employee Expenses,17/09/2014,97465,306.00,Revenue,Arnold Clark Finance Ltd,20685
Chorley Borough Council,http://statistics.data.gov.uk/id/local-authority/30UE,Planning Policy,1092,Shared Service Arrangement,Car Leasing Payment,14100,Direct Employee Expenses,5001,Direct Employee Expenses,17/09/2014,97465,27.41,Revenue,Arnold Clark Finance Ltd,20685
Chorley Borough Council,http://statistics.data.gov.uk/id/local-authority/30UE,Unapportionable Central OHeads,1009,Shared Service Arrangement,Car Leasing Payment,14100,Direct Employee Expenses,5001,Direct Employee Expenses,17/09/2014,97864,"3,228.00",Revenue,Arnold Clark Finance Ltd,20685
Chorley Borough Council,http://statistics.data.gov.uk/id/local-authority/30UE,Unapportionable Central OHeads,1009,Shared Service Arrangement,Car Leasing Payment,14100,Direct Employee Expenses,5001,Direct Employee Expenses,17/09/2014,97864,264.15,Revenue,Arnold Clark Finance Ltd,20685
Chorley Borough Council,http://statistics.data.gov.uk/id/local-authority/30UE,Unapportionable Central OHeads,1009,Shared Service Arrangement,Car Leasing Payment,14100,Direct Employee Expenses,5001,Direct Employee Expenses,17/09/2014,97865,"4,788.00",Revenue,Arnold Clark Finance Ltd,20685
Chorley Borough Council,http://statistics.data.gov.uk/id/local-authority/30UE,Unapportionable Central OHeads,1009,Shared Service Arrangement,Car Leasing Payment,14100,Direct Employee Expenses,5001,Direct Employee Expenses,17/09/2014,97865,436.53,Revenue,Arnold Clark Finance Ltd,20685
Chorley Borough Council,http://statistics.data.gov.uk/id/local-authority/30UE,Unapportionable Central OHeads,1009,Shared Service Arrangement,Car Leasing Payment,14100,Direct Employee Expenses,5001,Lease Car,24/09/2014,97897,"3,636.00",Revenue,Arnold Clark Finance Ltd,20685
Chorley Borough Council,http://statistics.data.gov.uk/id/local-authority/30UE,Unapportionable Central OHeads,1009,Shared Service Arrangement,Car Leasing Payment,14100,Direct Employee Expenses,5001,Direct Employee Expenses,24/09/2014,97897,312.99,Revenue,Arnold Clark Finance Ltd,20685
Chorley Borough Council,http://statistics.data.gov.uk/id/local-authority/30UE,Control Accounts,Control,Shared Service Arrangement,Manual Control Account,1,Balance Sheet,Balance,REFUND,17/09/2014,CRREF32,"1,237.09",Revenue,Autocentre LTD,21651
Chorley Borough Council,http://statistics.data.gov.uk/id/local-authority/30UE,Economic Development,1096,Economic Development,Grants To Other Organisations,40127,Grants and Subscriptions,5031,Shop Front 2nd Tranche,10/09/2014,97625,"3,309.37",Revenue,B & M Holdings,66209
Chorley Borough Council,http://statistics.data.gov.uk/id/local-authority/30UE,Service Management & Support,1009,Streetscene & Leisure Contracts,Registered Plant - Maintenance,40247,"Equipment, Furniture & Materia",5023,Supply inclinometers No CS-Inclinometer at price quoted,17/09/2014,97770,400.00,Revenue,Balmers Garden Machinery,17075
Chorley Borough Council,http://statistics.data.gov.uk/id/local-authority/30UE,Economic Development,1096,Shared Service Arrangement,Promotional Expenses,40159,Miscellaneous Expenses,5034,09/03/2014 Mailchimp Mailchimp,29/09/2014,97359,18.15,Revenue,Barclaycard Commercial,59848
Chorley Borough Council,http://statistics.data.gov.uk/id/local-authority/30UE,Unapportionable Central OHeads,1009,Shared Service Arrangement,Legal Fees,40171,Miscellaneous Expenses,5034,HM Courts - Services Court Fees 14/03/14,29/09/2014,97359,27.00,Revenue,Barclaycard Commercial,59848
Chorley Borough Council,http://statistics.data.gov.uk/id/local-authority/30UE,Unapportionable Central OHeads,1009,Shared Service Arrangement,First Aid Supplies,40031,"Equipment, Furniture & Materia",5023,28/02/2014 Imperative/Defibshop CPRD-Pad inc First Responder Kit,29/09/2014,97359,160.00,Revenue,Barclaycard Commercial,59848
Chorley Borough Council,http://statistics.data.gov.uk/id/local-authority/30UE,Unapportionable Central OHeads,1009,Shared Service Arrangement,Miscellaneous Expenses,40200,Miscellaneous Expenses,5034,04/03/2014 Companies House Annual Return for Chorley Interchange Ltd ,29/09/2014,97359,13.00,Revenue,Barclaycard Commercial,59848
Chorley Borough Council,http://statistics.data.gov.uk/id/local-authority/30UE,Unapportionable Central OHeads,1009,Shared Service Arrangement,Legal Fees,40171,Miscellaneous Expenses,5034,04/03/2014 County Court Manchester HM Courts - Fox Strategic Land & Property Ltd,29/09/2014,97359,45.00,Revenue,Barclaycard Commercial,59848
Chorley Borough Council,http://statistics.data.gov.uk/id/local-authority/30UE,Surplus or Deficit on Trading,1019,Shared Service Arrangement,Research & Feasibilities,40079,Services,5027,11/03/2014 Office for Nat Stats Policy ,29/09/2014,97359,72.00,Revenue,Barclaycard Commercial,59848
Chorley Borough Council,http://statistics.data.gov.uk/id/local-authority/30UE,Surplus or Deficit on Trading,1019,Shared Service Arrangement,Research & Feasibilities,40079,Services,5027,19/03/2014 UU Property Search Service Map for Flat Iron Car Park ,29/09/2014,97359,72.00,Revenue,Barclaycard Commercial,59848
Chorley Borough Council,http://statistics.data.gov.uk/id/local-authority/30UE,Flood Defence & Land Drainage,1046,Shared Service Arrangement,Legal Fees,40171,Miscellaneous Expenses,5034,20/03/2014 HM Courts - Services Application to HM Courts re Fleet St Car Park - Legal,29/09/2014,97359,200.00,Revenue,Barclaycard Commercial,59848
Chorley Borough Council,http://statistics.data.gov.uk/id/local-authority/30UE,Unapportionable Central OHeads,1009,Shared Service Arrangement,Publicity - Advertising,40157,Miscellaneous Expenses,5034,22/03/2014 Facebook Facebook Ads Payment ,29/09/2014,97359,2.97,Revenue,Barclaycard Commercial,59848
Chorley Borough Council,http://statistics.data.gov.uk/id/local-authority/30UE,Unapportionable Central OHeads,1009,Shared Service Arrangement,Publicity - Advertising,40157,Miscellaneous Expenses,5034,24/03/2014 Facebook Facebook Ads Payment ,29/09/2014,97359,15.39,Revenue,Barclaycard Commercial,59848
Chorley Borough Council,http://statistics.data.gov.uk/id/local-authority/30UE,Service Management & Support,1009,Shared Service Arrangement,Vehicle Excise Duty,30012,Direct Transport Costs,5016,27/03/2014 www.dvla.gov.uk Road Tax - AN06 UKJ,29/09/2014,97359,142.50,Revenue,Barclaycard Commercial,59848
Chorley Borough Council,http://statistics.data.gov.uk/id/local-authority/30UE,Flood Defence & Land Drainage,1046,Shared Service Arrangement,Vehicle Excise Duty,30012,Direct Transport Costs,5016,27/03/2014 www.dvla.gov.uk Road Tax - PO52 XVV,29/09/2014,97359,177.50,Revenue,Barclaycard Commercial,59848
Chorley Borough Council,http://statistics.data.gov.uk/id/local-authority/30UE,Unapportionable Central OHeads,1009,Shared Service Arrangement,Legal Fees,40171,Miscellaneous Expenses,5034,19/03/2014 HM Courts - Services Court Fees 19/03/14,29/09/2014,97359,"1,044.00",Revenue,Barclaycard Commercial,59848
Chorley Borough Council,http://statistics.data.gov.uk/id/local-authority/30UE,Corporate Management,1008,Shared Service Arrangement,Bank Charges,40151,Miscellaneous Expenses,5034,August Charges,29/09/2014,97596,526.61,Revenue,Barclaycard Merchant Services,61601
Chorley Borough Council,http://statistics.data.gov.uk/id/local-authority/30UE,Corporate Management,1008,Shared Service Arrangement,Bank Charges,40151,Miscellaneous Expenses,5034,August Charges,29/09/2014,97597,301.46,Revenue,Barclaycard Merchant Services,61601
Chorley Borough Council,http://statistics.data.gov.uk/id/local-authority/30UE,Corporate Management,1008,Shared Service Arrangement,Bank Charges,40151,Miscellaneous Expenses,5034,August Charges,29/09/2014,97651,334.46,Revenue,Barclaycard Merchant Services,61601
Chorley Borough Council,http://statistics.data.gov.uk/id/local-authority/30UE,Building Control,1090,Planning,Other Fees,40212,Miscellaneous Expenses,5034,Secure two exposed doorways to fire damaged building at Back Ashby Street Chorley.,24/09/2014,97882,285.00,Revenue,Barlow Construct & Renovation,16609
Chorley Borough Council,http://statistics.data.gov.uk/id/local-authority/30UE,Elections,1012,Policy & Performance,Publicity - Advertising,40157,Miscellaneous Expenses,5034,Election registering advertising,10/09/2014,97565,"1,858.22",Revenue,Bauer Active Ltd,50574
Chorley Borough Council,http://statistics.data.gov.uk/id/local-authority/30UE,Flood Defence & Land Drainage,1046,Health Environment & Neighbourhoods,Tools & Equipment - Maintenance,40005,"Equipment, Furniture & Materia",5023,Servicing and maintenance of CCTV,10/09/2014,97492,255.00,Revenue,Baydale Control Systems,21154
Chorley Borough Council,http://statistics.data.gov.uk/id/local-authority/30UE,Flood Defence & Land Drainage,1046,Health Environment & Neighbourhoods,Tools & Equipment - Maintenance,40005,"Equipment, Furniture & Materia",5023,Servicing and maintenance of CCTV,10/09/2014,97495,"1,941.50",Revenue,Baydale Control Systems,21154
Chorley Borough Council,http://statistics.data.gov.uk/id/local-authority/30UE,Unapportionable Central OHeads,1009,"Customer, ICT & Transactional",Consultants` Fees,40077,Services,5027,Support Services as agreed with Customer Transactional and ICT Services. Estimated 3 days a week,17/09/2014,97636,"1,800.00",Revenue,REDACTED PERSONAL DATA,22238
Chorley Borough Council,http://statistics.data.gov.uk/id/local-authority/30UE,Homelessness,1075,Housing,Laundry,40042,"Clothing, Uniforms and Laundry",5025,"Linen Service at Cotswold Supported Housing, Cotswold Road, Chorley, Lancashire, PR7 3HW. ",03/09/2014,97384,255.05,Revenue,Berendsen UK Ltd,20799
Chorley Borough Council,http://statistics.data.gov.uk/id/local-authority/30UE,Flood Defence & Land Drainage,1046,Health Environment & Neighbourhoods,Games/Playing Field Equipment,40009,"Equipment, Furniture & Materia",5023,Supply of two kurling sets and target Invoice purposes only - order placed via phone,12/09/2014,97616,466.00,Revenue,Bishop Sports And Leisure,17835
Chorley Borough Council,http://statistics.data.gov.uk/id/local-authority/30UE,Capital,Capital,Streetscene & Leisure Contracts,Other Capital Related Fees,3024,Capital Expenditure,Capital,Outline highways design Brindle Street,24/09/2014,97918,575.00,Capital,Borough of Pendle (Engineering and Design Services,54929
Chorley Borough Council,http://statistics.data.gov.uk/id/local-authority/30UE,Capital,Capital,Streetscene & Leisure Contracts,Other Capital Related Fees,3024,Capital Expenditure,Capital,Outline Highways design Harrison Road,24/09/2014,97921,610.00,Capital,Borough of Pendle (Engineering and Design Services,54929
Chorley Borough Council,http://statistics.data.gov.uk/id/local-authority/30UE,Capital,Capital,Streetscene & Leisure Contracts,Other Capital Related Fees,3024,Capital Expenditure,Capital,Outline highways design work Bolton Road,24/09/2014,97922,"1,100.00",Capital,Borough of Pendle (Engineering and Design Services,54929
Chorley Borough Council,http://statistics.data.gov.uk/id/local-authority/30UE,Capital,Capital,Streetscene & Leisure Contracts,Other Capital Related Fees,3024,Capital Expenditure,Capital,Outline highways design work Gloucester Road,24/09/2014,97923,925.00,Capital,Borough of Pendle (Engineering and Design Services,54929
Chorley Borough Council,http://statistics.data.gov.uk/id/local-authority/30UE,Flood Defence & Land Drainage,1046,Health Environment & Neighbourhoods,Children's Activities,40188,Miscellaneous Expenses,5034,Delivery of balloon modelling and Punch & Judy for Playtime in the Park event on 27th August,10/09/2014,97540,250.00,Revenue,Brian Gore,18370
Chorley Borough Council,http://statistics.data.gov.uk/id/local-authority/30UE,Democratic Represent and  Mgnt,1007,Governance,Gas,20014,Energy Costs,5006,Coach House,26/09/2014,97893,122.62,Revenue,British Gas Business,22242
Chorley Borough Council,http://statistics.data.gov.uk/id/local-authority/30UE,Community Development,1097,Governance,Gas,20014,Energy Costs,5006,Accouting Adv Svcs,26/09/2014,97893,18.08,Revenue,British Gas Business,22242
Chorley Borough Council,http://statistics.data.gov.uk/id/local-authority/30UE,Service Management & Support,1009,Governance,Gas,20014,Energy Costs,5006,Yarrow Valley,26/09/2014,97893,14.23,Revenue,British Gas Business,22242
Chorley Borough Council,http://statistics.data.gov.uk/id/local-authority/30UE,Unapportionable Central OHeads,1009,Governance,Gas,20014,Energy Costs,5006,Bengal Street,26/09/2014,97893,33.41,Revenue,British Gas Business,22242
Chorley Borough Council,http://statistics.data.gov.uk/id/local-authority/30UE,Democratic Represent and  Mgnt,1007,Governance,Gas,20014,Energy Costs,5006,Clayton Brook,26/09/2014,97893,23.81,Revenue,British Gas Business,22242
Chorley Borough Council,http://statistics.data.gov.uk/id/local-authority/30UE,Democratic Represent and  Mgnt,1007,Governance,Gas,20014,Energy Costs,5006,Astley Cottage,26/09/2014,97893,17.52,Revenue,British Gas Business,22242
Chorley Borough Council,http://statistics.data.gov.uk/id/local-authority/30UE,Democratic Represent and  Mgnt,1007,Governance,Gas,20014,Energy Costs,5006,Astley Village Comm Centre,26/09/2014,97893,13.34,Revenue,British Gas Business,22242
Chorley Borough Council,http://statistics.data.gov.uk/id/local-authority/30UE,Democratic Represent and  Mgnt,1007,Governance,Gas,20014,Energy Costs,5006,Astley Hall Farm House,26/09/2014,97893,50.16,Revenue,British Gas Business,22242
Chorley Borough Council,http://statistics.data.gov.uk/id/local-authority/30UE,Democratic Represent and  Mgnt,1007,Governance,Gas,20014,Energy Costs,5006,Eaves Green Comm Centre,26/09/2014,97893,17.93,Revenue,British Gas Business,22242
Chorley Borough Council,http://statistics.data.gov.uk/id/local-authority/30UE,Unapportionable Central OHeads,1009,Governance,Gas,20014,Energy Costs,5006,Union Street,26/09/2014,97893,671.13,Revenue,British Gas Business,22242
Chorley Borough Council,http://statistics.data.gov.uk/id/local-authority/30UE,Democratic Represent and  Mgnt,1007,Governance,Gas,20014,Energy Costs,5006,Astley Hall,26/09/2014,97893,530.11,Revenue,British Gas Business,22242
Chorley Borough Council,http://statistics.data.gov.uk/id/local-authority/30UE,Unapportionable Central OHeads,1009,Governance,Gas,20014,Energy Costs,5006,Town Hall,26/09/2014,97893,48.86,Revenue,British Gas Business,22242
Chorley Borough Council,http://statistics.data.gov.uk/id/local-authority/30UE,Central Support Services,1009,"Customer, ICT & Transactional",Computer Equipment-Purchase,40098,Communication and Computing,5028,Belkin QODE ULTIMATE Premium Keyboard Hard Case - Black,24/09/2014,97908,"2,550.00",Revenue,BT Business Direct Ltd,63990
Chorley Borough Council,http://statistics.data.gov.uk/id/local-authority/30UE,Capital,Capital,Streetscene & Leisure Contracts,Main Contractor,3007,Capital Expenditure,Capital,Second half of payment for works carried out at Astley Hall as per quote from 10th December 2014 plus additional works ,12/09/2014,97637,"3,745.00",Capital,Buildings Archaeology Ltd,65833
Chorley Borough Council,http://statistics.data.gov.uk/id/local-authority/30UE,Elections,1012,Governance,Publicity - Advertising,40157,Miscellaneous Expenses,5034,contribution towards Individual Electoral Registration Campaign - Lancashire - Bus Tickets,03/09/2014,97420,760.00,Revenue,Burnley Borough Council,61877
Chorley Borough Council,http://statistics.data.gov.uk/id/local-authority/30UE,Elections,1012,Governance,Publicity - Advertising,40157,Miscellaneous Expenses,5034,Lancashire AEA Group Advertising - Bus Tickets Electoral Registration,19/09/2014,97879,760.00,Revenue,Burnley Borough Council,17114
Chorley Borough Council,http://statistics.data.gov.uk/id/local-authority/30UE,Service Management & Support,1009,Streetscene & Leisure Contracts,Supplies-Grounds Maintenance,40025,"Equipment, Furniture & Materia",5023,Supply highway C2 fast setting mortar for Chorley Council,10/09/2014,97615,439.60,Revenue,C & W BERRY LIMITED,18180
Chorley Borough Council,http://statistics.data.gov.uk/id/local-authority/30UE,Unapportionable Central OHeads,1009,Streetscene & Leisure Contracts,Refuse Collection,20037,Cleaning and Domestic Supplies,5012,Carryout emptying of interceptor and gullies at Bengal St depot at price quoted,24/09/2014,97800,300.00,Revenue,C J Lyon,16579
Chorley Borough Council,http://statistics.data.gov.uk/id/local-authority/30UE,Service Management & Support,1009,Streetscene & Leisure Contracts,External Contractor,40198,Miscellaneous Expenses,5034,Carryout jetting and gully emptying at Corporation Street as requested,24/09/2014,97928,120.00,Revenue,C J Lyon,16579
Chorley Borough Council,http://statistics.data.gov.uk/id/local-authority/30UE,Service Management & Support,1009,Streetscene & Leisure Contracts,External Contractor,40198,Miscellaneous Expenses,5034,Carryout jetting as requested at Duke St rec as requested,24/09/2014,97928,180.00,Revenue,C J Lyon,16579
Chorley Borough Council,http://statistics.data.gov.uk/id/local-authority/30UE,Service Management & Support,1009,Streetscene & Leisure Contracts,External Contractor,40198,Miscellaneous Expenses,5034,Carryout investigation works at Jubilee playing fields as requested,24/09/2014,97928,120.00,Revenue,C J Lyon,16579
Chorley Borough Council,http://statistics.data.gov.uk/id/local-authority/30UE,Service Management & Support,1009,Streetscene & Leisure Contracts,External Contractor,40198,Miscellaneous Expenses,5034,Carryout investigation works culvert in Astley Park as requested,24/09/2014,97928,120.00,Revenue,C J Lyon,16579
Chorley Borough Council,http://statistics.data.gov.uk/id/local-authority/30UE,Service Management & Support,1009,Streetscene & Leisure Contracts,Vehicle Maintenance,30045,Direct Transport Costs,5016,Carryout pre MOT inspection and carryout repairs as required on DK07LDE take for annual test.,10/09/2014,97591,"2,356.80",Revenue,C P Davidson & Sons Ltd,21093
Chorley Borough Council,http://statistics.data.gov.uk/id/local-authority/30UE,Service Management & Support,1009,Streetscene & Leisure Contracts,Vehicle Maintenance,30045,Direct Transport Costs,5016,Carryout pre MOT inspection and carryout repairs as required on DK07LDE take for annual test.,10/09/2014,97591,93.00,Revenue,C P Davidson & Sons Ltd,21093
Chorley Borough Council,http://statistics.data.gov.uk/id/local-authority/30UE,Service Management & Support,1009,Streetscene & Leisure Contracts,Supplies-Grounds Maintenance,40025,"Equipment, Furniture & Materia",5023,Britain in Bloom lunch for 70 people,24/09/2014,97950,490.00,Revenue,Cafe Ambio,22328
Chorley Borough Council,http://statistics.data.gov.uk/id/local-authority/30UE,Unapportionable Central OHeads,1009,"Customer, ICT & Transactional",Emergency Call Out System,40096,Communication and Computing,5028,Out of Hours Standing Charge August 2014,05/09/2014,97549,636.88,Revenue,CallCare Ltd,20257
Chorley Borough Council,http://statistics.data.gov.uk/id/local-authority/30UE,Unapportionable Central OHeads,1009,"Customer, ICT & Transactional",Photocopier Charges,40047,"Printing, Stationery & General",5026,Uniflow Copier at Union Street,17/09/2014,97747,"1,114.75",Revenue,Canon (UK) Ltd,17492
Chorley Borough Council,http://statistics.data.gov.uk/id/local-authority/30UE,Unapportionable Central OHeads,1009,"Customer, ICT & Transactional",Photocopier Charges,40047,"Printing, Stationery & General",5026,Photocopier Useage,17/09/2014,97794,"1,281.21",Revenue,Canon (UK) Ltd,17492
Chorley Borough Council,http://statistics.data.gov.uk/id/local-authority/30UE,Flood Defence & Land Drainage,1046,Health Environment & Neighbourhoods,Hire Of Transport,30028,Contrct Hire & Operating Lease,5018,"Transport for Junior citizens during August 2014, dates as follows Weds 6th August",05/09/2014,97496,130.00,Revenue,Central Lancs Dial-A-Ride Ltd,16617
Chorley Borough Council,http://statistics.data.gov.uk/id/local-authority/30UE,Flood Defence & Land Drainage,1046,Health Environment & Neighbourhoods,Hire Of Transport,30028,Contrct Hire & Operating Lease,5018,Transport for Junior Citizens Weds 13th August 2014  x 2 mini buses,05/09/2014,97496,160.00,Revenue,Central Lancs Dial-A-Ride Ltd,16617
Chorley Borough Council,http://statistics.data.gov.uk/id/local-authority/30UE,Flood Defence & Land Drainage,1046,Health Environment & Neighbourhoods,Hire Of Transport,30028,Contrct Hire & Operating Lease,5018,Transport for Junior Citizens 20th August 2014,05/09/2014,97496,110.00,Revenue,Central Lancs Dial-A-Ride Ltd,16617
Chorley Borough Council,http://statistics.data.gov.uk/id/local-authority/30UE,Flood Defence & Land Drainage,1046,Health Environment & Neighbourhoods,Hire Of Transport,30028,Contrct Hire & Operating Lease,5018,Transport for Junior Citizens Weds 30th August x 2 minibuses,05/09/2014,97496,110.00,Revenue,Central Lancs Dial-A-Ride Ltd,16617
Chorley Borough Council,http://statistics.data.gov.uk/id/local-authority/30UE,Service Management & Support,1009,Streetscene & Leisure Contracts,External Contractor,40198,Miscellaneous Expenses,5034,Removal of tarmac and concrete pads at Jubilee recreation ground as requested,17/09/2014,97603,"1,800.00",Revenue,CH Civils Ltd,22541
Chorley Borough Council,http://statistics.data.gov.uk/id/local-authority/30UE,Unapportionable Central OHeads,1009,Policy & Performance,Other Fees,40212,Miscellaneous Expenses,5034,Diploma training fees,24/09/2014,97958,"1,095.00",Revenue,Chartered Institute of Public Relations,66708
Chorley Borough Council,http://statistics.data.gov.uk/id/local-authority/30UE,Parking Services,1066,Streetscene & Leisure Contracts,External Contractors,50008,Private Contractors,5042,Provision of Notice Processing services as agreed in Lancashire contract. 320 PCNs per month @ 2.90 per ticket.,17/09/2014,97128,652.38,Revenue,Chipside Ltd,22063
Chorley Borough Council,http://statistics.data.gov.uk/id/local-authority/30UE,Parking Services,1066,Streetscene & Leisure Contracts,External Contractors,50008,Private Contractors,5042,Provision of Notice Processing services as agreed in Lancashire contract. 320 PCNs per month @ 2.90 per ticket.,17/09/2014,97655,"1,434.24",Revenue,Chipside Ltd,22063
Chorley Borough Council,http://statistics.data.gov.uk/id/local-authority/30UE,Democratic Represent and  Mgnt,1007,Chief Executives Office,Use Of Transport - Mayoral Car,30015,Transport Recharges,5017,mayoral car wash,17/09/2014,97798,4.17,Revenue,Chorley BC Petty Cash,16301
Chorley Borough Council,http://statistics.data.gov.uk/id/local-authority/30UE,Unapportionable Central OHeads,1009,Chief Executives Office,Cleaning Materials,40019,"Equipment, Furniture & Materia",5023,dishwasher tablets,17/09/2014,97798,8.33,Revenue,Chorley BC Petty Cash,16301
Chorley Borough Council,http://statistics.data.gov.uk/id/local-authority/30UE,Democratic Represent and  Mgnt,1007,Chief Executives Office,Exhibitions,40176,Miscellaneous Expenses,5034,postage exhibition preview,17/09/2014,97798,21.08,Revenue,Chorley BC Petty Cash,16301
Chorley Borough Council,http://statistics.data.gov.uk/id/local-authority/30UE,Economic Development,1096,Chief Executives Office,Tools & Equipment - Purchase,40003,"Equipment, Furniture & Materia",5023,nuts,17/09/2014,97798,9.79,Revenue,Chorley BC Petty Cash,16301
Chorley Borough Council,http://statistics.data.gov.uk/id/local-authority/30UE,Economic Development,1096,Chief Executives Office,Cleaning Materials,40019,"Equipment, Furniture & Materia",5023,plunger,17/09/2014,97798,1.50,Revenue,Chorley BC Petty Cash,16301
Chorley Borough Council,http://statistics.data.gov.uk/id/local-authority/30UE,Flood Defence & Land Drainage,1046,Chief Executives Office,Refreshments,40036,Catering,5024,lunch junior citizens,17/09/2014,97798,15.44,Revenue,Chorley BC Petty Cash,16301
Chorley Borough Council,http://statistics.data.gov.uk/id/local-authority/30UE,Flood Defence & Land Drainage,1046,Chief Executives Office,Refreshments,40036,Catering,5024,misc items,17/09/2014,97798,12.50,Revenue,Chorley BC Petty Cash,16301
Chorley Borough Council,http://statistics.data.gov.uk/id/local-authority/30UE,Flood Defence & Land Drainage,1046,Chief Executives Office,Refreshments,40036,Catering,5024,stationery,17/09/2014,97798,7.33,Revenue,Chorley BC Petty Cash,16301
Chorley Borough Council,http://statistics.data.gov.uk/id/local-authority/30UE,Flood Defence & Land Drainage,1046,Chief Executives Office,Miscellaneous Expenses,40200,Miscellaneous Expenses,5034,stationery animal show,17/09/2014,97798,10.00,Revenue,Chorley BC Petty Cash,16301
Chorley Borough Council,http://statistics.data.gov.uk/id/local-authority/30UE,Flood Defence & Land Drainage,1046,Chief Executives Office,Refreshments,40036,Catering,5024,junior citizens,17/09/2014,97798,2.13,Revenue,Chorley BC Petty Cash,16301
Chorley Borough Council,http://statistics.data.gov.uk/id/local-authority/30UE,Flood Defence & Land Drainage,1046,Chief Executives Office,Refreshments,40036,Catering,5024,water,17/09/2014,97798,2.29,Revenue,Chorley BC Petty Cash,16301
Chorley Borough Council,http://statistics.data.gov.uk/id/local-authority/30UE,Unapportionable Central OHeads,1009,Chief Executives Office,Refreshments,40036,Catering,5024,milk,17/09/2014,97798,1.39,Revenue,Chorley BC Petty Cash,16301
Chorley Borough Council,http://statistics.data.gov.uk/id/local-authority/30UE,Economic Development,1096,Chief Executives Office,Miscellaneous Expenses,40200,Miscellaneous Expenses,5034,keys,17/09/2014,97798,3.95,Revenue,Chorley BC Petty Cash,16301
Chorley Borough Council,http://statistics.data.gov.uk/id/local-authority/30UE,Democratic Represent and  Mgnt,1007,Chief Executives Office,Use Of Transport - Mayoral Car,30015,Transport Recharges,5017,car wash,17/09/2014,97798,4.17,Revenue,Chorley BC Petty Cash,16301
Chorley Borough Council,http://statistics.data.gov.uk/id/local-authority/30UE,Economic Development,1096,Chief Executives Office,Tools & Equipment - Purchase,40003,"Equipment, Furniture & Materia",5023,nuts and bolts,17/09/2014,97798,11.73,Revenue,Chorley BC Petty Cash,16301
Chorley Borough Council,http://statistics.data.gov.uk/id/local-authority/30UE,Economic Development,1096,Chief Executives Office,Tools & Equipment - Purchase,40003,"Equipment, Furniture & Materia",5023,Drill Bits,17/09/2014,97798,1.30,Revenue,Chorley BC Petty Cash,16301
Chorley Borough Council,http://statistics.data.gov.uk/id/local-authority/30UE,Unapportionable Central OHeads,1009,Chief Executives Office,Tools & Equipment - Purchase,40003,"Equipment, Furniture & Materia",5023,keys,17/09/2014,97798,4.50,Revenue,Chorley BC Petty Cash,16301
Chorley Borough Council,http://statistics.data.gov.uk/id/local-authority/30UE,Flood Defence & Land Drainage,1046,Chief Executives Office,Miscellaneous Expenses,40200,Miscellaneous Expenses,5034,pens,17/09/2014,97798,1.04,Revenue,Chorley BC Petty Cash,16301
Chorley Borough Council,http://statistics.data.gov.uk/id/local-authority/30UE,Flood Defence & Land Drainage,1046,Chief Executives Office,Refreshments,40036,Catering,5024,refreshments,17/09/2014,97798,20.00,Revenue,Chorley BC Petty Cash,16301
Chorley Borough Council,http://statistics.data.gov.uk/id/local-authority/30UE,Flood Defence & Land Drainage,1046,Chief Executives Office,Miscellaneous Expenses,40200,Miscellaneous Expenses,5034,cable ties,17/09/2014,97798,5.99,Revenue,Chorley BC Petty Cash,16301
Chorley Borough Council,http://statistics.data.gov.uk/id/local-authority/30UE,Flood Defence & Land Drainage,1046,Chief Executives Office,Refreshments,40036,Catering,5024,"refreshm,ents",17/09/2014,97798,11.55,Revenue,Chorley BC Petty Cash,16301
Chorley Borough Council,http://statistics.data.gov.uk/id/local-authority/30UE,Unapportionable Central OHeads,1009,Chief Executives Office,Fixtures & Fittings - Purchase,20027,Fixtures and Fittings,5010,door chime,17/09/2014,97798,14.16,Revenue,Chorley BC Petty Cash,16301
Chorley Borough Council,http://statistics.data.gov.uk/id/local-authority/30UE,Flood Defence & Land Drainage,1046,Chief Executives Office,Refreshments,40036,Catering,5024,fruit and veg,17/09/2014,97798,40.00,Revenue,Chorley BC Petty Cash,16301
Chorley Borough Council,http://statistics.data.gov.uk/id/local-authority/30UE,Development Control,1091,Chief Executives Office,Postages,40082,Communication and Computing,5028,postage,17/09/2014,97798,27.89,Revenue,Chorley BC Petty Cash,16301
Chorley Borough Council,http://statistics.data.gov.uk/id/local-authority/30UE,Democratic Represent and  Mgnt,1007,Chief Executives Office,Tools & Equipment - Purchase,40003,"Equipment, Furniture & Materia",5023,carpet cleaner,17/09/2014,97798,2.74,Revenue,Chorley BC Petty Cash,16301
Chorley Borough Council,http://statistics.data.gov.uk/id/local-authority/30UE,Democratic Represent and  Mgnt,1007,Chief Executives Office,Use Of Transport - Mayoral Car,30015,Transport Recharges,5017,car wash,17/09/2014,97798,4.17,Revenue,Chorley BC Petty Cash,16301
Chorley Borough Council,http://statistics.data.gov.uk/id/local-authority/30UE,Economic Development,1096,Chief Executives Office,Miscellaneous Expenses,40200,Miscellaneous Expenses,5034,key cut,17/09/2014,97798,3.50,Revenue,Chorley BC Petty Cash,16301
Chorley Borough Council,http://statistics.data.gov.uk/id/local-authority/30UE,Unapportionable Central OHeads,1009,Chief Executives Office,Cleaning Materials,40019,"Equipment, Furniture & Materia",5023,dishwasher tablets,17/09/2014,97798,5.79,Revenue,Chorley BC Petty Cash,16301
Chorley Borough Council,http://statistics.data.gov.uk/id/local-authority/30UE,Homelessness,1075,Chief Executives Office,Prevention Fund,40242,Miscellaneous Expenses,5034,train ticket,17/09/2014,97798,11.90,Revenue,Chorley BC Petty Cash,16301
Chorley Borough Council,http://statistics.data.gov.uk/id/local-authority/30UE,Democratic Represent and  Mgnt,1007,Chief Executives Office,Use Of Transport - Mayoral Car,30015,Transport Recharges,5017,car wash,17/09/2014,97798,4.17,Revenue,Chorley BC Petty Cash,16301
Chorley Borough Council,http://statistics.data.gov.uk/id/local-authority/30UE,Flood Defence & Land Drainage,1046,Chief Executives Office,Refreshments,40036,Catering,5024,refreshments,17/09/2014,97798,23.77,Revenue,Chorley BC Petty Cash,16301
Chorley Borough Council,http://statistics.data.gov.uk/id/local-authority/30UE,Unapportionable Central OHeads,1009,Chief Executives Office,Tools & Equipment - Purchase,40003,"Equipment, Furniture & Materia",5023,batteries,17/09/2014,97798,9.98,Revenue,Chorley BC Petty Cash,16301
Chorley Borough Council,http://statistics.data.gov.uk/id/local-authority/30UE,Flood Defence & Land Drainage,1046,Chief Executives Office,Children's Activities,40188,Miscellaneous Expenses,5034,materials,17/09/2014,97798,4.17,Revenue,Chorley BC Petty Cash,16301
Chorley Borough Council,http://statistics.data.gov.uk/id/local-authority/30UE,Flood Defence & Land Drainage,1046,Chief Executives Office,Children's Activities,40188,Miscellaneous Expenses,5034,refreshments,17/09/2014,97798,9.64,Revenue,Chorley BC Petty Cash,16301
Chorley Borough Council,http://statistics.data.gov.uk/id/local-authority/30UE,Democratic Represent and  Mgnt,1007,Chief Executives Office,Tools & Equipment - Purchase,40003,"Equipment, Furniture & Materia",5023,drinks,17/09/2014,97798,5.00,Revenue,Chorley BC Petty Cash,16301
Chorley Borough Council,http://statistics.data.gov.uk/id/local-authority/30UE,Flood Defence & Land Drainage,1046,Health Environment & Neighbourhoods,Children's Activities,40188,Miscellaneous Expenses,5034,Hire of bouncy castles and slide throughout summer activity proramme,17/09/2014,97850,960.00,Revenue,Chorley Bouncy Castles,55301
Chorley Borough Council,http://statistics.data.gov.uk/id/local-authority/30UE,Unapportionable Central OHeads,1009,Shared Service Arrangement,Training Course Fees,17010,Indirect Employee Expenses,5002,CIPFA Diploma - Financial Management day release,17/09/2014,97772,710.00,Revenue,CIPFA,16201
Chorley Borough Council,http://statistics.data.gov.uk/id/local-authority/30UE,Unapportionable Central OHeads,1009,Shared Service Arrangement,Training Course Fees,17010,Indirect Employee Expenses,5002,CIPFA Diploma Financial Management revision course ,17/09/2014,97772,260.00,Revenue,CIPFA,16201
Chorley Borough Council,http://statistics.data.gov.uk/id/local-authority/30UE,Unapportionable Central OHeads,1009,Shared Service Arrangement,Training Course Fees,17010,Indirect Employee Expenses,5002,CIPFA Diploma - Governence Public Policy & Ethics day release,17/09/2014,97772,590.00,Revenue,CIPFA,16201
Chorley Borough Council,http://statistics.data.gov.uk/id/local-authority/30UE,Unapportionable Central OHeads,1009,Shared Service Arrangement,Training Course Fees,17010,Indirect Employee Expenses,5002,CIPFA Diploma - Governence Public Policy & Ethics revision course ,17/09/2014,97772,155.00,Revenue,CIPFA,16201
Chorley Borough Council,http://statistics.data.gov.uk/id/local-authority/30UE,Economic Development,1096,Economic Development,Tools & Equipment - Maintenance,40005,"Equipment, Furniture & Materia",5023,Please supply x 10 upper outer legs with the holes in for the pin to locate (without brackets) @ 35 each,10/09/2014,97541,350.00,Revenue,City B Group Ltd,47300
Chorley Borough Council,http://statistics.data.gov.uk/id/local-authority/30UE,Economic Development,1096,Economic Development,Tools & Equipment - Maintenance,40005,"Equipment, Furniture & Materia",5023,Please supply a large bag of rivets,10/09/2014,97541,10.00,Revenue,City B Group Ltd,47300
Chorley Borough Council,http://statistics.data.gov.uk/id/local-authority/30UE,Capital,Capital,Economic Development,Equipment,3014,Capital Expenditure,Capital,Please supply 6 double gazebos to same spec as existing (unbranded) @ 995 each,05/09/2014,97542,"5,970.00",Capital,City B Group Ltd,47300
Chorley Borough Council,http://statistics.data.gov.uk/id/local-authority/30UE,Capital,Capital,Economic Development,Equipment,3014,Capital Expenditure,Capital,Please supply 30 polyester side sheets red / white @ 57.50 each,05/09/2014,97542,"1,725.00",Capital,City B Group Ltd,47300
Chorley Borough Council,http://statistics.data.gov.uk/id/local-authority/30UE,Unapportionable Central OHeads,1009,Transformation Management,Asset Maintenance Fund,20012,Repairs Maintenance & Alts,5005,Carry out demolistion/refurbishment asbestos ADDRESS REDACTED. Obtain lab sample analysis and prepare final report,10/09/2014,97458,640.00,Revenue,CMC Asbestos Surveys Ltd,66621
Chorley Borough Council,http://statistics.data.gov.uk/id/local-authority/30UE,Unapportionable Central OHeads,1009,Transformation Management,Asset Maintenance Fund,20012,Repairs Maintenance & Alts,5005,"Town Hall - Carry out asbestos survey to main reception and basement are under, of the above property. ",12/09/2014,97601,450.00,Revenue,CMC Asbestos Surveys Ltd,66621
Chorley Borough Council,http://statistics.data.gov.uk/id/local-authority/30UE,Unapportionable Central OHeads,1009,Transformation Management,Asset Maintenance Fund,20012,Repairs Maintenance & Alts,5005,attend to entrance lights,17/09/2014,97718,296.93,Revenue,Corlett Electrical Eng Co Ltd,16271
Chorley Borough Council,http://statistics.data.gov.uk/id/local-authority/30UE,Service Management & Support,1009,Streetscene & Leisure Contracts,Grounds Maintenance Contractor,20043,Grounds Maintenance Costs,5013,Worked completed - Pack 9 Various tree work,17/09/2014,97773,"4,515.00",Revenue,Cornthwaite Tree Care,21250
Chorley Borough Council,http://statistics.data.gov.uk/id/local-authority/30UE,Service Management & Support,1009,Streetscene & Leisure Contracts,Grounds Maintenance Contractor,20043,Grounds Maintenance Costs,5013,Works completed - Pack 8 Various tree work,17/09/2014,97774,"3,080.00",Revenue,Cornthwaite Tree Care,21250
Chorley Borough Council,http://statistics.data.gov.uk/id/local-authority/30UE,Service Management & Support,1009,Streetscene & Leisure Contracts,Grounds Maintenance Contractor,20043,Grounds Maintenance Costs,5013,Work Pack 10 - work completed,24/09/2014,97884,"4,200.00",Revenue,Cornthwaite Tree Care,21250
Chorley Borough Council,http://statistics.data.gov.uk/id/local-authority/30UE,Service Management & Support,1009,Streetscene & Leisure Contracts,Grounds Maintenance Contractor,20043,Grounds Maintenance Costs,5013,Pack 8 & 9 - part 2. Work completed,24/09/2014,97885,"1,890.00",Revenue,Cornthwaite Tree Care,21250
Chorley Borough Council,http://statistics.data.gov.uk/id/local-authority/30UE,Community Development,1097,Governance,Grants To Other Organisations,40127,Grants and Subscriptions,5031,Councillor Community Grant Payment,17/09/2014,97626,250.00,Revenue,Croston Village Festivities Group,59024
Chorley Borough Council,http://statistics.data.gov.uk/id/local-authority/30UE,Elections,1012,"Customer, ICT & Transactional",Computer Equipment-Purchase,40098,Communication and Computing,5028,Fujitsu fi-6670 scanner,17/09/2014,97620,"2,352.00",Revenue,CSG Limited,65095
Chorley Borough Council,http://statistics.data.gov.uk/id/local-authority/30UE,Elections,1012,"Customer, ICT & Transactional",Computer Equipment-Purchase,40098,Communication and Computing,5028,Fujitsu fi-6770 scanner,17/09/2014,97620,"3,976.00",Revenue,CSG Limited,65095
Chorley Borough Council,http://statistics.data.gov.uk/id/local-authority/30UE,Elections,1012,"Customer, ICT & Transactional",Computer Equipment-Purchase,40098,Communication and Computing,5028,Fujitsu fi-6670 scanner - upgrade Fujitsu standard 12 month Warranty to 3 years 8+8 support contract undertaken by Fujits,17/09/2014,97620,695.00,Revenue,CSG Limited,65095
Chorley Borough Council,http://statistics.data.gov.uk/id/local-authority/30UE,Elections,1012,"Customer, ICT & Transactional",Computer Equipment-Purchase,40098,Communication and Computing,5028,Fujitsu fi-6770 scanner - upgrade Fujitsu standard 12 month Warranty to 3 years 8+8 support contract (undertaken by Fujit,17/09/2014,97620,795.00,Revenue,CSG Limited,65095
Chorley Borough Council,http://statistics.data.gov.uk/id/local-authority/30UE,Elections,1012,"Customer, ICT & Transactional",Computer Equipment-Purchase,40098,Communication and Computing,5028,Delivery 10 per scanner,17/09/2014,97620,20.00,Revenue,CSG Limited,65095
Chorley Borough Council,http://statistics.data.gov.uk/id/local-authority/30UE,Central Support Services,1009,"Customer, ICT & Transactional",Photocopier Charges,40047,"Printing, Stationery & General",5026,service agreement number 507 for Fujitsu 5750C & Kofax 650i,03/09/2014,97414,515.55,Revenue,Cull Paperless Solutions Ltd,22097
Chorley Borough Council,http://statistics.data.gov.uk/id/local-authority/30UE,Service Management & Support,1009,Streetscene & Leisure Contracts,Children's Activities,40188,Miscellaneous Expenses,5034,  3 Coaching sessions for junior fishing. 28th Jul/4thAug/11thAug,03/09/2014,97405,300.00,Revenue,Curwens Angling Centre,61163
Chorley Borough Council,http://statistics.data.gov.uk/id/local-authority/30UE,Service Management & Support,1009,Streetscene & Leisure Contracts,Children's Activities,40188,Miscellaneous Expenses,5034,3 fishing coaching sessions 18/25 Aug 2nd Sep,24/09/2014,97956,300.00,Revenue,Curwens Angling Centre,61163
Chorley Borough Council,http://statistics.data.gov.uk/id/local-authority/30UE,Service Management & Support,1009,Streetscene & Leisure Contracts,Supplies-Grounds Maintenance,40025,"Equipment, Furniture & Materia",5023,1 Memorial Balmoral Bench 1.8m KD 1 Stainless Steel Plaque 8``x2``,12/09/2014,97736,370.83,Revenue,Cyan,61782
Chorley Borough Council,http://statistics.data.gov.uk/id/local-authority/30UE,Other Short Term Debtors,,HR & Org. Development,Other Debtors,98,Balance Sheet,Balance,"Cycle Helmets, Bikes and other equipment",03/09/2014,97422,"1,394.13",Revenue,Cyclescheme Ltd,22390
Chorley Borough Council,http://statistics.data.gov.uk/id/local-authority/30UE,Collection Fund Revenue Accoun,,Shared Service Arrangement,NNDR Central Share,2034,Precepts & Collection Fund,Precept,NNDR central Share,29/09/2014,98031,"1,417,064.00",Revenue,Department of Communities and Local Government,16280
Chorley Borough Council,http://statistics.data.gov.uk/id/local-authority/30UE,Non Domestic Rates Redistribut,,Shared Service Arrangement,Tariff to Central Government,49000,Expenditure not in NCOS,,Retained nndr,29/09/2014,98031,"802,792.00",Revenue,Department of Communities and Local Government,16280
Chorley Borough Council,http://statistics.data.gov.uk/id/local-authority/30UE,Service Management & Support,1009,Streetscene & Leisure Contracts,Tools & Equipment - Purchase,40003,"Equipment, Furniture & Materia",5023,Stihl Blower BR600 Stihl Combi KM90R Hedge trimmer attachment for combi,03/09/2014,97431,866.69,Revenue,Dick Leigh,17138
Chorley Borough Council,http://statistics.data.gov.uk/id/local-authority/30UE,Unapportionable Central OHeads,1009,Health Environment & Neighbourhoods,HR Recruitment Expenses,15200,Indirect Employee Expenses,5002,DBS Disclosure certificates,29/09/2014,97516,88.00,Revenue,Disclosure & Barring Service,16387
Chorley Borough Council,http://statistics.data.gov.uk/id/local-authority/30UE,Corporate Management,1008,Health Environment & Neighbourhoods,CRB Disclosure Fees,40070,Services,5027,DBS checks for taxi licensing,29/09/2014,97516,440.00,Revenue,Disclosure & Barring Service,16387
Chorley Borough Council,http://statistics.data.gov.uk/id/local-authority/30UE,Unapportionable Central OHeads,1009,HR & Org. Development,HR Recruitment Expenses,15200,Indirect Employee Expenses,5002,Basic Disclosures,19/09/2014,97880,325.00,Revenue,Disclosure Scotland,65366
Chorley Borough Council,http://statistics.data.gov.uk/id/local-authority/30UE,Democratic Represent and  Mgnt,1007,Streetscene & Leisure Contracts,Fixtures & Fittings - Purchase,20027,Fixtures and Fittings,5010,A willow figure ,10/09/2014,97569,400.00,Revenue,Eco-Arts,21984
Chorley Borough Council,http://statistics.data.gov.uk/id/local-authority/30UE,Flood Defence & Land Drainage,1046,Health Environment & Neighbourhoods,Training Course Fees,17010,Indirect Employee Expenses,5002,For purchase of sport licence (duty care on line training ) for 10 people at a cost of 300 not incl VAT,19/09/2014,97871,300.00,Revenue,Educare Learning Ltd,60489
Chorley Borough Council,http://statistics.data.gov.uk/id/local-authority/30UE,Central Support Services,1009,"Customer, ICT & Transactional",Mobile Phones,40086,Communication and Computing,5028,August Charges,17/09/2014,97846,"1,135.27",Revenue,EE - Orange,16486
Chorley Borough Council,http://statistics.data.gov.uk/id/local-authority/30UE,Central Support Services,1009,"Customer, ICT & Transactional",Mobile Phones,40086,Communication and Computing,5028,August Charges,17/09/2014,97846,3.00,Revenue,EE - Orange,16486
Chorley Borough Council,http://statistics.data.gov.uk/id/local-authority/30UE,Central Support Services,1009,"Customer, ICT & Transactional",Mobile Phones,40086,Communication and Computing,5028,September Charges,17/09/2014,97847,"1,028.43",Revenue,EE - Orange,16486
Chorley Borough Council,http://statistics.data.gov.uk/id/local-authority/30UE,Central Support Services,1009,"Customer, ICT & Transactional",Mobile Phones,40086,Communication and Computing,5028,September Charges,17/09/2014,97847,3.00,Revenue,EE - Orange,16486
Chorley Borough Council,http://statistics.data.gov.uk/id/local-authority/30UE,Unapportionable Central OHeads,1009,"Customer, ICT & Transactional",Mobile Phones,40086,Communication and Computing,5028,"1gb data bundle on 4g network - 2 year contract. SIMs only. 70 users x 2.50 per month x 2 years = 4,200. ",17/09/2014,97848,174.30,Revenue,EE LIMITED,63366
Chorley Borough Council,http://statistics.data.gov.uk/id/local-authority/30UE,Unapportionable Central OHeads,1009,"Customer, ICT & Transactional",Mobile Phones,40086,Communication and Computing,5028,"1gb data bundle on 4g network - 2 year contract. SIMs only. 30 users x 2.50 per month x 2 years = 1,800. ",17/09/2014,97848,74.70,Revenue,EE LIMITED,63366
Chorley Borough Council,http://statistics.data.gov.uk/id/local-authority/30UE,Central Support Services,1009,"Customer, ICT & Transactional",Mobile Phones,40086,Communication and Computing,5028,"1gb data bundle on 4g network - 2 year contract. SIMs only. 30 users x 2.50 per month x 2 years = 1,800. ",17/09/2014,97848,74.70,Revenue,EE LIMITED,63366
Chorley Borough Council,http://statistics.data.gov.uk/id/local-authority/30UE,Central Support Services,1009,"Customer, ICT & Transactional",Mobile Phones,40086,Communication and Computing,5028,"4g iPhone 5s, 16GB, space grey, unlimited calls & texts, 1GB data. 15 connections at 10 per user per month for 24 mnths",17/09/2014,97848,150.00,Revenue,EE LIMITED,63366
Chorley Borough Council,http://statistics.data.gov.uk/id/local-authority/30UE,Central Support Services,1009,"Customer, ICT & Transactional",Mobile Phones,40086,Communication and Computing,5028,Additional Charges,17/09/2014,97848,78.38,Revenue,EE LIMITED,63366
Chorley Borough Council,http://statistics.data.gov.uk/id/local-authority/30UE,Unapportionable Central OHeads,1009,Transformation Management,Electricity,20013,Energy Costs,5006,Electricity Service Removal ADDRESS REDACTED. Project Ref: Y71565/A DADS ID: 6326,24/09/2014,97902,"1,007.71",Revenue,Electricity North West Ltd,17118
Chorley Borough Council,http://statistics.data.gov.uk/id/local-authority/30UE,Democratic Represent and  Mgnt,1007,Streetscene & Leisure Contracts,Rent/Hire Of Premises,20017,Premises Rents,5007,"Duxbury Coach House Rent - 10,625 per qtr T+J175 to be invoiced quarterly Q1: 25/03/14 - 24/06/14    ",12/09/2014,97722,"10,625.00",Revenue,European Settled Estates Plc,16495
Chorley Borough Council,http://statistics.data.gov.uk/id/local-authority/30UE,Democratic Represent and  Mgnt,1007,Streetscene & Leisure Contracts,Rent/Hire Of Premises,20017,Premises Rents,5007,"Service Charge - 1,125 per qtr To be invoiced quarterly Q1: 25/03/14 - 24/06/14    Q2: 25/06/14 - 24/09/14",12/09/2014,97722,"1,125.00",Revenue,European Settled Estates Plc,16495
Chorley Borough Council,http://statistics.data.gov.uk/id/local-authority/30UE,Service Management & Support,1009,Streetscene & Leisure Contracts,Hire Of Transport,30028,Contrct Hire & Operating Lease,5018,Hire of Case tractor and side arm flail for Chorley Council at price quoted from 01/04/2014 ,17/09/2014,97698,"1,639.84",Revenue,F R Sharrock Ltd,18091
Chorley Borough Council,http://statistics.data.gov.uk/id/local-authority/30UE,Flood Defence & Land Drainage,1046,Health Environment & Neighbourhoods,Children's Activities,40188,Miscellaneous Expenses,5034,Supply of Mobile Farm for Playday on Wednesday 6th August,24/09/2014,97925,470.00,Revenue,Fishers Mobile Farm,59761
Chorley Borough Council,http://statistics.data.gov.uk/id/local-authority/30UE,Service Management & Support,1009,Streetscene & Leisure Contracts,Freight Transport Assoc Fees,40150,Grants and Subscriptions,5031,Carryout 6 weekly safety inspection on DK56JWL for Olicence compliance,17/09/2014,97813,115.33,Revenue,Freight Transport Assoc Ltd,16333
Chorley Borough Council,http://statistics.data.gov.uk/id/local-authority/30UE,Service Management & Support,1009,Streetscene & Leisure Contracts,Freight Transport Assoc Fees,40150,Grants and Subscriptions,5031,Carryout 6 weekly safety inspection on PN02HRL for Olicence compliance,17/09/2014,97813,115.33,Revenue,Freight Transport Assoc Ltd,16333
Chorley Borough Council,http://statistics.data.gov.uk/id/local-authority/30UE,Service Management & Support,1009,Streetscene & Leisure Contracts,Freight Transport Assoc Fees,40150,Grants and Subscriptions,5031,Carryout 6 weekly safety inspection on DK05CXG for Olicence compliance,17/09/2014,97813,115.33,Revenue,Freight Transport Assoc Ltd,16333
Chorley Borough Council,http://statistics.data.gov.uk/id/local-authority/30UE,Service Management & Support,1009,Streetscene & Leisure Contracts,Freight Transport Assoc Fees,40150,Grants and Subscriptions,5031,Carryout 6 weekly safety inspection on RV14DVB for Olicence compliance,17/09/2014,97813,115.33,Revenue,Freight Transport Assoc Ltd,16333
Chorley Borough Council,http://statistics.data.gov.uk/id/local-authority/30UE,Service Management & Support,1009,Streetscene & Leisure Contracts,Freight Transport Assoc Fees,40150,Grants and Subscriptions,5031,Carryout 6 weekly safety inspection on DK07LDE for Olicence compliance,17/09/2014,97813,115.33,Revenue,Freight Transport Assoc Ltd,16333
Chorley Borough Council,http://statistics.data.gov.uk/id/local-authority/30UE,Homelessness,1075,Housing,Fixtures & Fittings - Purchase,20027,Fixtures and Fittings,5010,Various Furniture Items for new Flat 21 Cotswold Supported Housing,19/09/2014,97901,808.23,Revenue,Furniture Resource Centre Ltd,22085
Chorley Borough Council,http://statistics.data.gov.uk/id/local-authority/30UE,Democratic Represent and  Mgnt,1007,Streetscene & Leisure Contracts,Miscellaneous Expenses,40200,Miscellaneous Expenses,5034,"Brinscall Baths.Replace 2 pumps as required. Pumps: 864.50 each Labour: 34.00 ph - 1.5hrs per pump. Overrun of time ",26/09/2014,98015,"2,140.30",Revenue,G.O.S. Heating Limited,59990
Chorley Borough Council,http://statistics.data.gov.uk/id/local-authority/30UE,Democratic Represent and  Mgnt,1007,Streetscene & Leisure Contracts,Security Service,40062,Services,5027,All Seasons,17/09/2014,97795,142.96,Revenue,G4S Cash Solutions UK Ltd,22099
Chorley Borough Council,http://statistics.data.gov.uk/id/local-authority/30UE,Democratic Represent and  Mgnt,1007,Streetscene & Leisure Contracts,Security Service,40062,Services,5027,Brinscall Baths,17/09/2014,97795,55.97,Revenue,G4S Cash Solutions UK Ltd,22099
Chorley Borough Council,http://statistics.data.gov.uk/id/local-authority/30UE,Unapportionable Central OHeads,1009,Streetscene & Leisure Contracts,Security Service,40062,Services,5027,Union Street,17/09/2014,97795,55.97,Revenue,G4S Cash Solutions UK Ltd,22099
Chorley Borough Council,http://statistics.data.gov.uk/id/local-authority/30UE,Democratic Represent and  Mgnt,1007,Streetscene & Leisure Contracts,Security Service,40062,Services,5027,Clayton Green,17/09/2014,97795,55.97,Revenue,G4S Cash Solutions UK Ltd,22099
Chorley Borough Council,http://statistics.data.gov.uk/id/local-authority/30UE,Homelessness,1075,Streetscene & Leisure Contracts,Security Service,40062,Services,5027,Cotswold House,17/09/2014,97795,27.97,Revenue,G4S Cash Solutions UK Ltd,22099
Chorley Borough Council,http://statistics.data.gov.uk/id/local-authority/30UE,Surplus or Deficit on Trading,1019,Governance,Electricity,20013,Energy Costs,5006,ADDRESS REDACTED,17/09/2014,97817,258.74,Revenue,Gazprom Energy,56502
Chorley Borough Council,http://statistics.data.gov.uk/id/local-authority/30UE,Unapportionable Central OHeads,1009,HR & Org. Development,Leadership Development Programme,17008,Indirect Employee Expenses,5002,Delivery of coaching session (0.5 day),10/09/2014,97550,300.00,Revenue,Geoffrey Leigh Limited,52744
Chorley Borough Council,http://statistics.data.gov.uk/id/local-authority/30UE,Flood Defence & Land Drainage,1046,Health Environment & Neighbourhoods,Impounded Dogs Costs,40207,Miscellaneous Expenses,5034,Kennelling fees for 2014/15,24/09/2014,97955,740.00,Revenue,Glencoe Boarding Kennels,16734
Chorley Borough Council,http://statistics.data.gov.uk/id/local-authority/30UE,Flood Defence & Land Drainage,1046,Health Environment & Neighbourhoods,Impounded Dogs Costs,40207,Miscellaneous Expenses,5034,Kennelling fees for 2014/15,24/09/2014,97961,730.00,Revenue,Glencoe Boarding Kennels,16734
Chorley Borough Council,http://statistics.data.gov.uk/id/local-authority/30UE,Homelessness,1075,Housing,Fixtures & Fittings - Purchase,20027,Fixtures and Fittings,5010,Purchasing of 2x Horizon Washers and 1x Horizon Dryer orginally supplied to Cotswold Supported Housing 09/06/09 ,17/09/2014,97827,"7,273.50",Revenue,Goodman Sparks Ltd,66818
Chorley Borough Council,http://statistics.data.gov.uk/id/local-authority/30UE,Flood Defence & Land Drainage,1046,Health Environment & Neighbourhoods,External Contractor,40198,Miscellaneous Expenses,5034,Reactive and proactive graffiti removal,19/09/2014,97807,"1,246.87",Revenue,Graffiti Removal (North) Ltd,17320
Chorley Borough Council,http://statistics.data.gov.uk/id/local-authority/30UE,Corporate Management,1008,Shared Service Arrangement,External Audit,40064,Services,5027,2014-15 External Audit Fee,17/09/2014,97796,"14,860.00",Revenue,Grant Thornton UK LLP,57322
Chorley Borough Council,http://statistics.data.gov.uk/id/local-authority/30UE,Unapportionable Central OHeads,1009,Shared Service Arrangement,HM Land Registry Fees,40174,Miscellaneous Expenses,5034,Liberata,29/09/2014,97551,111.00,Revenue,H M Land Registry,17567
Chorley Borough Council,http://statistics.data.gov.uk/id/local-authority/30UE,Unapportionable Central OHeads,1009,Shared Service Arrangement,HM Land Registry Fees,40174,Miscellaneous Expenses,5034,Local Tax,29/09/2014,97551,39.00,Revenue,H M Land Registry,17567
Chorley Borough Council,http://statistics.data.gov.uk/id/local-authority/30UE,Development Control,1091,Shared Service Arrangement,HM Land Registry Fees,40174,Miscellaneous Expenses,5034,Planning,29/09/2014,97551,234.00,Revenue,H M Land Registry,17567
Chorley Borough Council,http://statistics.data.gov.uk/id/local-authority/30UE,Corporate Management,1008,Shared Service Arrangement,HM Land Registry Fees,40174,Miscellaneous Expenses,5034,People,29/09/2014,97551,21.00,Revenue,H M Land Registry,17567
Chorley Borough Council,http://statistics.data.gov.uk/id/local-authority/30UE,Unapportionable Central OHeads,1009,Shared Service Arrangement,HM Land Registry Fees,40174,Miscellaneous Expenses,5034,Revs & Bens,29/09/2014,97551,12.00,Revenue,H M Land Registry,17567
Chorley Borough Council,http://statistics.data.gov.uk/id/local-authority/30UE,Housing Strategy,1069,Shared Service Arrangement,HM Land Registry Fees,40174,Miscellaneous Expenses,5034,land reg,29/09/2014,98070,18.00,Revenue,H M Land Registry,17567
Chorley Borough Council,http://statistics.data.gov.uk/id/local-authority/30UE,Unapportionable Central OHeads,1009,Shared Service Arrangement,HM Land Registry Fees,40174,Miscellaneous Expenses,5034,land reg,29/09/2014,98070,88.00,Revenue,H M Land Registry,17567
Chorley Borough Council,http://statistics.data.gov.uk/id/local-authority/30UE,Unapportionable Central OHeads,1009,Shared Service Arrangement,HM Land Registry Fees,40174,Miscellaneous Expenses,5034,land reg,29/09/2014,98070,12.00,Revenue,H M Land Registry,17567
Chorley Borough Council,http://statistics.data.gov.uk/id/local-authority/30UE,Development Control,1091,Shared Service Arrangement,HM Land Registry Fees,40174,Miscellaneous Expenses,5034,land re,29/09/2014,98070,489.00,Revenue,H M Land Registry,17567
Chorley Borough Council,http://statistics.data.gov.uk/id/local-authority/30UE,Corporate Management,1008,Shared Service Arrangement,HM Land Registry Fees,40174,Miscellaneous Expenses,5034,land reg,29/09/2014,98070,11.00,Revenue,H M Land Registry,17567
Chorley Borough Council,http://statistics.data.gov.uk/id/local-authority/30UE,Service Management & Support,1009,Streetscene & Leisure Contracts,Supplies & Consumables -Street Cleansing,40235,"Equipment, Furniture & Materia",5023,Supply 2 x bags of blue elastic bannds as supplied previously to Bengal St depot.,24/09/2014,97952,285.00,Revenue,Harrisons Packaging Ltd,17555
Chorley Borough Council,http://statistics.data.gov.uk/id/local-authority/30UE,Corporate Management,1008,Health Environment & Neighbourhoods,Training Course Fees,17010,Indirect Employee Expenses,5002,Over flow kennelling from July 2014 - March 2015,17/09/2014,97811,264.00,Revenue,High Heyes Kennells & Cattery,21663
Chorley Borough Council,http://statistics.data.gov.uk/id/local-authority/30UE,Business Support,1095,Governance,Fire Alarms,20072,Fixtures and Fittings,5010,"Gillibrand st S53971 customer code 1 x call out job ref 16232747 (24/08/14)1x call out job ref 16232512 (23/08/14)",24/09/2014,97959,567.73,Revenue,Honeywell - Novar Systems Ltd,16689
Chorley Borough Council,http://statistics.data.gov.uk/id/local-authority/30UE,Central Support Services,1009,"Customer, ICT & Transactional",Consultants` Fees,40077,Services,5027,Data Loading for Microfiche Project Loading of Textual Dataset of Planning References and associated data (held in Excel) ,17/09/2014,97621,"1,425.00",Revenue,IDOX Software Limited,17542
Chorley Borough Council,http://statistics.data.gov.uk/id/local-authority/30UE,Control Accounts,Control,Shared Service Arrangement,Manual Control Account,1,Balance Sheet,Balance,,10/09/2014,96848,"1,375.00",Revenue,Inland Revenue 065py00102078,17445
Chorley Borough Council,http://statistics.data.gov.uk/id/local-authority/30UE,Service Management & Support,1009,Streetscene & Leisure Contracts,Vehicle Trackers,30046,Direct Transport Costs,5016,Lease of vehicle tracker system from 01/04/2014 through until 31/03/2015,26/09/2014,97999,795.80,Revenue,Investec Asset Finance Plc,53879
Chorley Borough Council,http://statistics.data.gov.uk/id/local-authority/30UE,Community Development,1097,Governance,Premises Related Insurances,20068,Premises Related Insurance,5014,ADDRESS REDACTED,17/09/2014,97707,"7,218.75",Revenue,NAME REDACTED,17124
Chorley Borough Council,http://statistics.data.gov.uk/id/local-authority/30UE,Building Control,1090,Planning,Other Fees,40212,Miscellaneous Expenses,5034,"Carry out emegency propping works at The Old Bakery, South Road, Bretherton,following a vehicle accident.",24/09/2014,97878,"1,415.10",Revenue,J W Ousby & Sons Ltd,66888
Chorley Borough Council,http://statistics.data.gov.uk/id/local-authority/30UE,Development Control,1091,Planning,Statutory Notices,40160,Miscellaneous Expenses,5034,Planning Public Notices to appear in the Chorley Guardian April 2014 - March 2015,24/09/2014,97946,363.48,Revenue,Johnston Publishing Ltd,20072
Chorley Borough Council,http://statistics.data.gov.uk/id/local-authority/30UE,Capital,Capital,Housing,Grants,3002,Capital Expenditure,Capital,ADDRESS REDACTED,24/09/2014,97970,"3,845.00",Capital,K Berry Ltd,16421
Chorley Borough Council,http://statistics.data.gov.uk/id/local-authority/30UE,Corporate Management,1008,Streetscene & Leisure Contracts,External Contractor,40198,Miscellaneous Expenses,5034,Home improvements under Chorley Affordable Warmth Initiative 2013-14 at PR6 8HP,26/09/2014,97980,"4,050.00",Revenue,K Berry Ltd,16421
Chorley Borough Council,http://statistics.data.gov.uk/id/local-authority/30UE,Central Support Services,1009,"Customer, ICT & Transactional",Computer Equipment-Purchase,40098,Communication and Computing,5028,"STARTECH 1.8M 29 PIN COMBINED DVI MALE TO 24 PIN DIGITAL DVI MALE, 24 PIN DIGITAL DVI MA",17/09/2014,97826,266.70,Revenue,Kelway UK Ltd,60681
Chorley Borough Council,http://statistics.data.gov.uk/id/local-authority/30UE,Homelessness,1075,Housing,Grants To Other Organisations,40127,Grants and Subscriptions,5031,"Provision pf Pre-Tenancy Training in Chorley, Preston, South Ribble and West Lancs Q3",17/09/2014,97819,"3,718.75",Revenue,Key,61252
Chorley Borough Council,http://statistics.data.gov.uk/id/local-authority/30UE,Homelessness,1075,Housing,External Contractor,40198,Miscellaneous Expenses,5034,Provision of Housing Drop In & Mediation Service to the Young People of Chorley (Quarterly),24/09/2014,97835,"4,750.00",Revenue,Key,61252
Chorley Borough Council,http://statistics.data.gov.uk/id/local-authority/30UE,Control Accounts,Control,Shared Service Arrangement,General Balances,100,Balance Sheet,Balance,,24/09/2014,97973,"1,188.06",Revenue,Labour Councillors Association,17577
Chorley Borough Council,http://statistics.data.gov.uk/id/local-authority/30UE,Central Support Services,1009,"Customer, ICT & Transactional",Other Fees,40212,Miscellaneous Expenses,5034,Charges for the GIS Services Contract between Lancashire County Council and Chorley Council,03/09/2014,97368,"7,949.54",Revenue,Lancashire County Council,17758
Chorley Borough Council,http://statistics.data.gov.uk/id/local-authority/30UE,Corporate Management,1008,Streetscene & Leisure Contracts,Printing,40043,"Printing, Stationery & General",5026,Printing of  2000 Activity Booklets,12/09/2014,97390,"1,687.60",Revenue,Lancashire County Council,17758
Chorley Borough Council,http://statistics.data.gov.uk/id/local-authority/30UE,Capital,Capital,Housing,Grants,3002,Capital Expenditure,Capital,INV. 5100246352 NAME AND ADDRESS REDACTED,05/09/2014,97499,"5,662.00",Capital,Lancashire County Council,17758
Chorley Borough Council,http://statistics.data.gov.uk/id/local-authority/30UE,Capital,Capital,Housing,Grants,3002,Capital Expenditure,Capital,INV. 5100216351 NAME AND ADDRESS REDACTED,05/09/2014,97500,"2,272.00",Capital,Lancashire County Council,17758
Chorley Borough Council,http://statistics.data.gov.uk/id/local-authority/30UE,Capital,Capital,Housing,Grants,3002,Capital Expenditure,Capital,INV. 51002163 NAME AND ADDRESS REDACTED,05/09/2014,97501,"2,332.00",Capital,Lancashire County Council,17758
Chorley Borough Council,http://statistics.data.gov.uk/id/local-authority/30UE,Capital,Capital,Housing,Grants,3002,Capital Expenditure,Capital,INV 5100216350 NAME AND ADDRESS REDACTED,10/09/2014,97567,"1,894.00",Capital,Lancashire County Council,17758
Chorley Borough Council,http://statistics.data.gov.uk/id/local-authority/30UE,Precepts and Collection Fund,Precepts,Shared Service Arrangement,LCC Precept,2009,Precepts & Collection Fund,Precept,CTAX,29/09/2014,98034,"3,739,823.00",Revenue,Lancashire County Council,18386
Chorley Borough Council,http://statistics.data.gov.uk/id/local-authority/30UE,Collection Fund Revenue Accoun,,Shared Service Arrangement,NNDR County Share,2036,Precepts & Collection Fund,Precept,NNDR,29/09/2014,98034,"241,439.00",Revenue,Lancashire County Council,18386
Chorley Borough Council,http://statistics.data.gov.uk/id/local-authority/30UE,Unapportionable Central OHeads,1009,Shared Service Arrangement,Pensions Increase Act Payments,18005,Indirect Employee Expenses,5002,PENSION,29/09/2014,98036,"18,781.99",Revenue,Lancashire County Council,18386
Chorley Borough Council,http://statistics.data.gov.uk/id/local-authority/30UE,Corporate Management,1008,Policy & Performance,Other Fees,40212,Miscellaneous Expenses,5034,Meals on wheels,10/09/2014,97484,342.50,Revenue,Lancashire Fayre,62967
Chorley Borough Council,http://statistics.data.gov.uk/id/local-authority/30UE,Unapportionable Central OHeads,1009,Shared Service Arrangement,Pensions Deficit Recovery Contributions,12003,Direct Employee Expenses,5001,Pension Deficit as per YPS 14,29/09/2014,97317,"59,133.33",Revenue,Lancashire Pensions Services,16696
Chorley Borough Council,http://statistics.data.gov.uk/id/local-authority/30UE,Corporate Management,1008,Streetscene & Leisure Contracts,Clinical Waste Collection,50007,Private Contractors,5042,Disposal of Clinical waste from Chorley Households. April 2014 to March 2015 yellow bag collections approx 550 per month,12/09/2014,97573,"1,132.78",Revenue,Lancashire Teaching Hospitals NHS FT,19003
Chorley Borough Council,http://statistics.data.gov.uk/id/local-authority/30UE,Collection Fund Revenue Accoun,,Shared Service Arrangement,NNDR Fire Share,2037,Precepts & Collection Fund,Precept,precept,29/09/2014,98032,"26,827.00",Revenue,Lancs Combined Fire Authority,17768
Chorley Borough Council,http://statistics.data.gov.uk/id/local-authority/30UE,Precepts and Collection Fund,Precepts,Shared Service Arrangement,LCFA Precept,2011,Precepts & Collection Fund,Precept,PRECEPT,29/09/2014,98033,"214,953.00",Revenue,Lancs Combined Fire Authority,17768
Chorley Borough Council,http://statistics.data.gov.uk/id/local-authority/30UE,Development Control,1091,Shared Service Arrangement,Car Leasing Payment,14100,Direct Employee Expenses,5001,Car Leasing Payment,05/09/2014,97552,"2,657.99",Revenue,LeasePlan UK Ltd T/A Automotive Leasing,65197
Chorley Borough Council,http://statistics.data.gov.uk/id/local-authority/30UE,Development Control,1091,Shared Service Arrangement,Car Leasing Payment,14100,Direct Employee Expenses,5001,Car Leasing Payment,05/09/2014,97552,218.92,Revenue,LeasePlan UK Ltd T/A Automotive Leasing,65197
Chorley Borough Council,http://statistics.data.gov.uk/id/local-authority/30UE,Parking Services,1066,Streetscene & Leisure Contracts,External Contractors,50008,Private Contractors,5042,Enforcement and cash collection for off street car parks. 1 April to 31 August 2014,12/09/2014,97613,"4,849.61",Revenue,Legion Group,21973
Chorley Borough Council,http://statistics.data.gov.uk/id/local-authority/30UE,Democratic Represent and  Mgnt,1007,Streetscene & Leisure Contracts,Fixtures & Fittings - Purchase,20027,Fixtures and Fittings,5010,"fittings for hanging system, farmhouse",10/09/2014,97599,493.65,Revenue,Lion Picture Framing Supplies Ltd,21731
Chorley Borough Council,http://statistics.data.gov.uk/id/local-authority/30UE,Unapportionable Central OHeads,1009,Chief Executives Office,Stationery,40050,"Printing, Stationery & General",5026,C5 Window Envelopes,03/09/2014,97416,41.82,Revenue,Lyreco UK Ltd,17623
Chorley Borough Council,http://statistics.data.gov.uk/id/local-authority/30UE,Unapportionable Central OHeads,1009,Chief Executives Office,Stationery,40050,"Printing, Stationery & General",5026,Lyreco Budget White Dl Self Seal Window Envelopes 80Gsm - Box Of 1000,03/09/2014,97416,3.88,Revenue,Lyreco UK Ltd,17623
Chorley Borough Council,http://statistics.data.gov.uk/id/local-authority/30UE,Corporate Management,1008,Chief Executives Office,Stationery,40050,"Printing, Stationery & General",5026,"689.759 BX50 VERBATIM CD-R 80MN 700MB SPINDLE 	21",03/09/2014,97416,49.42,Revenue,Lyreco UK Ltd,17623
Chorley Borough Council,http://statistics.data.gov.uk/id/local-authority/30UE,Unapportionable Central OHeads,1009,Chief Executives Office,Stationery,40050,"Printing, Stationery & General",5026,2.182.763 PK25 FELLOWES  CD SLIM CASES BLACK,03/09/2014,97416,5.12,Revenue,Lyreco UK Ltd,17623
Chorley Borough Council,http://statistics.data.gov.uk/id/local-authority/30UE,Unapportionable Central OHeads,1009,Chief Executives Office,Stationery,40050,"Printing, Stationery & General",5026,Lyreco Green Highlighters - Pack Of 10,03/09/2014,97416,0.50,Revenue,Lyreco UK Ltd,17623
Chorley Borough Council,http://statistics.data.gov.uk/id/local-authority/30UE,Unapportionable Central OHeads,1009,Chief Executives Office,Stationery,40050,"Printing, Stationery & General",5026,Yellow Highlighter Pens,03/09/2014,97416,0.50,Revenue,Lyreco UK Ltd,17623
Chorley Borough Council,http://statistics.data.gov.uk/id/local-authority/30UE,Unapportionable Central OHeads,1009,Chief Executives Office,Stationery,40050,"Printing, Stationery & General",5026,LYRECO BUDGET ORANGE HIGHLIGHTERS - PACK OF 10,03/09/2014,97416,0.50,Revenue,Lyreco UK Ltd,17623
Chorley Borough Council,http://statistics.data.gov.uk/id/local-authority/30UE,Unapportionable Central OHeads,1009,Chief Executives Office,Stationery,40050,"Printing, Stationery & General",5026,Lyreco Budget 12-Part A4 Subject Dividers Cardboard 160Gsm Pastel,03/09/2014,97416,1.14,Revenue,Lyreco UK Ltd,17623
Chorley Borough Council,http://statistics.data.gov.uk/id/local-authority/30UE,Unapportionable Central OHeads,1009,Chief Executives Office,Stationery,40050,"Printing, Stationery & General",5026,Lyreco Budget Assorted Colour A4 5-Part Index Subject Dividers,03/09/2014,97416,0.60,Revenue,Lyreco UK Ltd,17623
Chorley Borough Council,http://statistics.data.gov.uk/id/local-authority/30UE,Corporate Management,1008,Chief Executives Office,Stationery,40050,"Printing, Stationery & General",5026,A4 WEEK TO VIEW DIARY - BLACK (please supply an alternative colour if this is not available),03/09/2014,97416,4.47,Revenue,Lyreco UK Ltd,17623
Chorley Borough Council,http://statistics.data.gov.uk/id/local-authority/30UE,Corporate Management,1008,Chief Executives Office,Stationery,40050,"Printing, Stationery & General",5026,Page a Day Diary A5 - Black,03/09/2014,97416,1.49,Revenue,Lyreco UK Ltd,17623
Chorley Borough Council,http://statistics.data.gov.uk/id/local-authority/30UE,Corporate Management,1008,Chief Executives Office,Stationery,40050,"Printing, Stationery & General",5026,Slim Diary Week to View - Black,03/09/2014,97416,41.40,Revenue,Lyreco UK Ltd,17623
Chorley Borough Council,http://statistics.data.gov.uk/id/local-authority/30UE,Corporate Management,1008,Chief Executives Office,Stationery,40050,"Printing, Stationery & General",5026,Slim Diary Week to View - Black,03/09/2014,97416,3.45,Revenue,Lyreco UK Ltd,17623
Chorley Borough Council,http://statistics.data.gov.uk/id/local-authority/30UE,Development Control,1091,Chief Executives Office,Stationery,40050,"Printing, Stationery & General",5026,LYRECO WEEK/VIEW DIARY A5 BLACK,03/09/2014,97416,1.98,Revenue,Lyreco UK Ltd,17623
Chorley Borough Council,http://statistics.data.gov.uk/id/local-authority/30UE,Democratic Represent and  Mgnt,1007,Chief Executives Office,Stationery,40050,"Printing, Stationery & General",5026,A4 Page a Day A4 Diary - Black,03/09/2014,97416,2.59,Revenue,Lyreco UK Ltd,17623
Chorley Borough Council,http://statistics.data.gov.uk/id/local-authority/30UE,Unapportionable Central OHeads,1009,Chief Executives Office,Stationery,40050,"Printing, Stationery & General",5026,Page a Day Diary A5 - Black,03/09/2014,97416,7.45,Revenue,Lyreco UK Ltd,17623
Chorley Borough Council,http://statistics.data.gov.uk/id/local-authority/30UE,Democratic Represent and  Mgnt,1007,Chief Executives Office,Stationery,40050,"Printing, Stationery & General",5026,Year Planner,03/09/2014,97416,1.29,Revenue,Lyreco UK Ltd,17623
Chorley Borough Council,http://statistics.data.gov.uk/id/local-authority/30UE,Democratic Represent and  Mgnt,1007,Chief Executives Office,Stationery,40050,"Printing, Stationery & General",5026,4 Drawer Unit,03/09/2014,97416,52.32,Revenue,Lyreco UK Ltd,17623
Chorley Borough Council,http://statistics.data.gov.uk/id/local-authority/30UE,Democratic Represent and  Mgnt,1007,Chief Executives Office,Stationery,40050,"Printing, Stationery & General",5026,2.578.327 LYRECO 200 TELEPHONE MESSAGE PAD,03/09/2014,97416,4.95,Revenue,Lyreco UK Ltd,17623
Chorley Borough Council,http://statistics.data.gov.uk/id/local-authority/30UE,Democratic Represent and  Mgnt,1007,Chief Executives Office,Stationery,40050,"Printing, Stationery & General",5026,Lyreco Blue Foolscap Box File,03/09/2014,97416,0.57,Revenue,Lyreco UK Ltd,17623
Chorley Borough Council,http://statistics.data.gov.uk/id/local-authority/30UE,Democratic Represent and  Mgnt,1007,Chief Executives Office,Stationery,40050,"Printing, Stationery & General",5026,Green Box File,03/09/2014,97416,5.70,Revenue,Lyreco UK Ltd,17623
Chorley Borough Council,http://statistics.data.gov.uk/id/local-authority/30UE,Democratic Represent and  Mgnt,1007,Chief Executives Office,Stationery,40050,"Printing, Stationery & General",5026,Lyreco Bullet Tip Assorted Colour Whiteboard Markers - Wallet Of 4,03/09/2014,97416,0.37,Revenue,Lyreco UK Ltd,17623
Chorley Borough Council,http://statistics.data.gov.uk/id/local-authority/30UE,Democratic Represent and  Mgnt,1007,Chief Executives Office,Stationery,40050,"Printing, Stationery & General",5026,Hp C8767 No.339 Original Inkjet Cartridge - Black,03/09/2014,97416,20.92,Revenue,Lyreco UK Ltd,17623
Chorley Borough Council,http://statistics.data.gov.uk/id/local-authority/30UE,Unapportionable Central OHeads,1009,Chief Executives Office,Stationery,40050,"Printing, Stationery & General",5026,Hp C9363 No.344 Original Inkjet Cartridge - 3 Colour,03/09/2014,97416,23.29,Revenue,Lyreco UK Ltd,17623
Chorley Borough Council,http://statistics.data.gov.uk/id/local-authority/30UE,Unapportionable Central OHeads,1009,Chief Executives Office,Stationery,40050,"Printing, Stationery & General",5026,Lyreco Budget A4 Multi-Punched Plastic Pockets 55 Microns - Pack Of 100,03/09/2014,97416,2.38,Revenue,Lyreco UK Ltd,17623
Chorley Borough Council,http://statistics.data.gov.uk/id/local-authority/30UE,Unapportionable Central OHeads,1009,Chief Executives Office,Stationery,40050,"Printing, Stationery & General",5026,BX 5000 Lyreco Staples 26/6,03/09/2014,97416,0.45,Revenue,Lyreco UK Ltd,17623
Chorley Borough Council,http://statistics.data.gov.uk/id/local-authority/30UE,Unapportionable Central OHeads,1009,Chief Executives Office,Stationery,40050,"Printing, Stationery & General",5026,LYRECO MULTI-PURPOSE WHITE LABELS 199.6 X 143.5MM - BOX OF 200 (WITH SELVEDGE),03/09/2014,97416,2.06,Revenue,Lyreco UK Ltd,17623
Chorley Borough Council,http://statistics.data.gov.uk/id/local-authority/30UE,Unapportionable Central OHeads,1009,Chief Executives Office,Stationery,40050,"Printing, Stationery & General",5026,LYRECO WEEK/VIEW DIARY A5 BLACK,03/09/2014,97416,1.98,Revenue,Lyreco UK Ltd,17623
Chorley Borough Council,http://statistics.data.gov.uk/id/local-authority/30UE,Unapportionable Central OHeads,1009,Chief Executives Office,Stationery,40050,"Printing, Stationery & General",5026,Lyreco Black A4 2 O-Ring Binder 25Mm Spine - Box Of 10,03/09/2014,97416,2.40,Revenue,Lyreco UK Ltd,17623
Chorley Borough Council,http://statistics.data.gov.uk/id/local-authority/30UE,Corporate Management,1008,Chief Executives Office,Stationery,40050,"Printing, Stationery & General",5026,HP  Office Jet Pro 8100,03/09/2014,97416,41.08,Revenue,Lyreco UK Ltd,17623
Chorley Borough Council,http://statistics.data.gov.uk/id/local-authority/30UE,Corporate Management,1008,Chief Executives Office,Stationery,40050,"Printing, Stationery & General",5026,772.405 LYRECO WEEK/VIEW DIARY A5 BLK,03/09/2014,97416,3.96,Revenue,Lyreco UK Ltd,17623
Chorley Borough Council,http://statistics.data.gov.uk/id/local-authority/30UE,Service Management & Support,1009,Streetscene & Leisure Contracts,Grounds Maintenance Contractor,20043,Grounds Maintenance Costs,5013,Works completwed Radburn Brow shelterbelt Lord Nelson Public House,03/09/2014,97426,"1,280.00",Revenue,M J Walker,62044
Chorley Borough Council,http://statistics.data.gov.uk/id/local-authority/30UE,Service Management & Support,1009,Streetscene & Leisure Contracts,Grounds Maintenance Contractor,20043,Grounds Maintenance Costs,5013,Tree works completed - various sites,24/09/2014,97927,"2,020.00",Revenue,M J Walker,62044
Chorley Borough Council,http://statistics.data.gov.uk/id/local-authority/30UE,Capital,Capital,Housing,Grants,3002,Capital Expenditure,Capital,INV. 1874 NAME AND ADDRESS REDACTED DFG,05/09/2014,97502,"2,800.00",Capital,M.J Park Building Contractors,20367
Chorley Borough Council,http://statistics.data.gov.uk/id/local-authority/30UE,Capital,Capital,Streetscene & Leisure Contracts,Main Contractor,3007,Capital Expenditure,Capital,"Jubilee Recreation Ground, Adlington -  Freeform Concrete Skate Park.  Design and Build with associated H & S ",10/09/2014,97580,"27,550.00",Capital,Maverick Industries Limited,65524
Chorley Borough Council,http://statistics.data.gov.uk/id/local-authority/30UE,Capital,Capital,Housing,Grants,3002,Capital Expenditure,Capital,INV.14003 ADDRESS REDACTED,24/09/2014,97909,"13,497.86",Capital,Mint Northwest Ltd,65607
Chorley Borough Council,http://statistics.data.gov.uk/id/local-authority/30UE,Planning Policy,1092,Planning,Legal Fees,40171,Miscellaneous Expenses,5034,Chorley Local Plan - Gypsy & Traveller Site Allocation - 20 August Advising in Conference 22 August Reviewing Draft,05/09/2014,97519,"1,012.50",Revenue,Mr Ian Ponter,19968
Chorley Borough Council,http://statistics.data.gov.uk/id/local-authority/30UE,Planning Policy,1092,Planning,Legal Fees,40171,Miscellaneous Expenses,5034,Gypsy & Traveller Sit Allocation - Reviewing the Council`s response to the Inspector`s questions 5 September 2014,17/09/2014,97786,"1,237.50",Revenue,Mr Ian Ponter,19968
Chorley Borough Council,http://statistics.data.gov.uk/id/local-authority/30UE,Flood Defence & Land Drainage,1046,Streetscene & Leisure Contracts,Miscellaneous Expenses,40200,Miscellaneous Expenses,5034,Removal of brick planters and soil from area outside of Astley Village Community Centre. Part of AV Neighbourhood Project,10/09/2014,97568,"1,900.00",Revenue,Mr Stephen Scambler,16710
Chorley Borough Council,http://statistics.data.gov.uk/id/local-authority/30UE,Flood Defence & Land Drainage,1046,Health Environment & Neighbourhoods,Miscellaneous Expenses,40200,Miscellaneous Expenses,5034,"ADDRESS REDACTED JCB & driver scraping the area -  600 + VAT based on  3days work maximum 20 tonne of road plan",12/09/2014,97674,600.00,Revenue,Mr Stephen Scambler,16710
Chorley Borough Council,http://statistics.data.gov.uk/id/local-authority/30UE,Flood Defence & Land Drainage,1046,Health Environment & Neighbourhoods,Miscellaneous Expenses,40200,Miscellaneous Expenses,5034,"ADDRESS REDACTED JCB & driver scraping the area - 400 20 tonnes of road plainings - 300 Remove all debris",12/09/2014,97675,400.00,Revenue,Mr Stephen Scambler,16710
Chorley Borough Council,http://statistics.data.gov.uk/id/local-authority/30UE,Private Sector HSG Renewal,1073,Housing,Employee Related Insurance,18003,Indirect Employee Expenses,5002,Provision of Energy Switching Support Service (August),26/09/2014,98030,300.00,Revenue,Mrs Heather Shaw,65606
Chorley Borough Council,http://statistics.data.gov.uk/id/local-authority/30UE,Unapportionable Central OHeads,1009,Transformation Management,Asset Maintenance Fund,20012,Repairs Maintenance & Alts,5005,Service Pipe Disconnection For work at: ADDRESS REDACTED,12/09/2014,97735,421.00,Revenue,National Grid plc,56732
Chorley Borough Council,http://statistics.data.gov.uk/id/local-authority/30UE,Unapportionable Central OHeads,1009,Chief Executives Office,Postages,40082,Communication and Computing,5028,supply of postage amounts for NF5330 franking machine,24/09/2014,97852,"1,000.00",Revenue,Nationwide Franking Sense,22546
Chorley Borough Council,http://statistics.data.gov.uk/id/local-authority/30UE,Service Management & Support,1009,Streetscene & Leisure Contracts,Refuse Collection,20037,Cleaning and Domestic Supplies,5012,Exchange charge for Street cleaning 20 yard skip at price quoted. (Please use this order No from 01/04/2014),17/09/2014,97692,300.00,Revenue,Neales Waste Management,17583
Chorley Borough Council,http://statistics.data.gov.uk/id/local-authority/30UE,Service Management & Support,1009,Streetscene & Leisure Contracts,Refuse Collection,20037,Cleaning and Domestic Supplies,5012,Exchange of 30 yard green waste skip from Bengal St depot at price quoted. (Please use this order No form 01/04/2014),17/09/2014,97714,645.12,Revenue,Neales Waste Management,17583
Chorley Borough Council,http://statistics.data.gov.uk/id/local-authority/30UE,Economic Development,1096,Economic Development,Grants To Other Organisations,40127,Grants and Subscriptions,5031,Starting in Business Grant,19/09/2014,97887,250.00,Revenue,NAME REDACTED,66661
Chorley Borough Council,http://statistics.data.gov.uk/id/local-authority/30UE,Homelessness,1075,Housing,Grants To Other Organisations,40127,Grants and Subscriptions,5031,"Delivery of Shared Housing Pilot in Chorley, Preston, South Ribble and West Lancashire Quarter 3",17/09/2014,97618,"3,646.75",Revenue,New Progress Housing Association Ltd,17922
Chorley Borough Council,http://statistics.data.gov.uk/id/local-authority/30UE,Economic Development,1096,Economic Development,External Contractor,40198,Miscellaneous Expenses,5034,works as per invoice no: 0000016534,24/09/2014,97949,"18,142.17",Revenue,Newground CIC,22064
Chorley Borough Council,http://statistics.data.gov.uk/id/local-authority/30UE,Unapportionable Central OHeads,1009,Chief Executives Office,Stationery,40050,"Printing, Stationery & General",5026,Supply of Newspapers (paid quarterly),17/09/2014,97771,478.25,Revenue,Nooze `n` Booze,19382
Chorley Borough Council,http://statistics.data.gov.uk/id/local-authority/30UE,Parking Services,1066,Governance,Electricity,20013,Energy Costs,5006,Un-metered car park lighting Town Hal,17/09/2014,97696,1.06,Revenue,Npower Commercial Gas,16814
Chorley Borough Council,http://statistics.data.gov.uk/id/local-authority/30UE,Parking Services,1066,Governance,Electricity,20013,Energy Costs,5006,Un-Meted pay and displey machines,17/09/2014,97696,103.99,Revenue,Npower Commercial Gas,16814
Chorley Borough Council,http://statistics.data.gov.uk/id/local-authority/30UE,Flood Defence & Land Drainage,1046,Governance,Electricity,20013,Energy Costs,5006,Un-Metered CCTV,17/09/2014,97696,256.33,Revenue,Npower Commercial Gas,16814
Chorley Borough Council,http://statistics.data.gov.uk/id/local-authority/30UE,Unapportionable Central OHeads,1009,"Customer, ICT & Transactional",General Subscriptions,40146,Grants and Subscriptions,5031,Web Benefits Calculator (software licence annual subscription 21st February 2014  20th Feb 2015).,26/09/2014,98037,595.00,Revenue,Otech Limited,17667
Chorley Borough Council,http://statistics.data.gov.uk/id/local-authority/30UE,Capital,Capital,Housing,Main Contractor,3007,Capital Expenditure,Capital,Refurbishment of Cotswold,10/09/2014,97586,"96,642.68",Capital,P J Services (Bolton) Ltd,62962
Chorley Borough Council,http://statistics.data.gov.uk/id/local-authority/30UE,Flood Defence & Land Drainage,1046,Health Environment & Neighbourhoods,External Contractor,40198,Miscellaneous Expenses,5034,Pest control duties for 2014/15,17/09/2014,97776,323.83,Revenue,Peter L Johnson,16727
Chorley Borough Council,http://statistics.data.gov.uk/id/local-authority/30UE,Flood Defence & Land Drainage,1046,Health Environment & Neighbourhoods,External Contractor,40198,Miscellaneous Expenses,5034,Pest control duties for 2014/15,17/09/2014,97858,323.83,Revenue,Peter L Johnson,16727
Chorley Borough Council,http://statistics.data.gov.uk/id/local-authority/30UE,Flood Defence & Land Drainage,1046,Health Environment & Neighbourhoods,External Contractor,40198,Miscellaneous Expenses,5034,Pest control duties for 2014/15,24/09/2014,97962,323.83,Revenue,Peter L Johnson,16727
Chorley Borough Council,http://statistics.data.gov.uk/id/local-authority/30UE,Economic Development,1096,Economic Development,Consultants` Fees,40077,Services,5027,Enterprise Vision Awards - Table plus hospitality 740 plus VAT,24/09/2014,97965,740.00,Revenue,Pink Link Ladies Ltd,66886
Chorley Borough Council,http://statistics.data.gov.uk/id/local-authority/30UE,Precepts and Collection Fund,Precepts,Shared Service Arrangement,LPA Precept,2010,Precepts & Collection Fund,Precept,PRECEPT,29/09/2014,98035,"526,535.00",Revenue,Police & Crime Commissioner,17438
Chorley Borough Council,http://statistics.data.gov.uk/id/local-authority/30UE,Unapportionable Central OHeads,1009,Policy & Performance,Exhibitions & Special Events,40158,Miscellaneous Expenses,5034,Banners as per quotation REF4002/1,10/09/2014,97622,524.06,Revenue,Poppy Signs Ltd,21898
Chorley Borough Council,http://statistics.data.gov.uk/id/local-authority/30UE,Unapportionable Central OHeads,1009,Chief Executives Office,Photocopier Consumables,40049,"Printing, Stationery & General",5026,Evolution Everyday A3 80gsm box 2500,10/09/2014,97572,46.15,Revenue,Premier Paper Group,54451
Chorley Borough Council,http://statistics.data.gov.uk/id/local-authority/30UE,Unapportionable Central OHeads,1009,Chief Executives Office,Photocopier Consumables,40049,"Printing, Stationery & General",5026,"Evolution Everyday A4 80gsm, Box 2500",10/09/2014,97572,454.00,Revenue,Premier Paper Group,54451
Chorley Borough Council,http://statistics.data.gov.uk/id/local-authority/30UE,Unapportionable Central OHeads,1009,Chief Executives Office,Photocopier Consumables,40049,"Printing, Stationery & General",5026,Papago Pastel Blue A4 80gsm Box 2500,10/09/2014,97572,26.35,Revenue,Premier Paper Group,54451
Chorley Borough Council,http://statistics.data.gov.uk/id/local-authority/30UE,Elections,1012,Governance,Printing,40043,"Printing, Stationery & General",5026,HEF`s - Initial run,19/09/2014,97875,"1,875.00",Revenue,Print Image Network,21171
Chorley Borough Council,http://statistics.data.gov.uk/id/local-authority/30UE,Elections,1012,Governance,Printing,40043,"Printing, Stationery & General",5026,ITR`s - Initial run,19/09/2014,97876,"2,217.00",Revenue,Print Image Network,21171
Chorley Borough Council,http://statistics.data.gov.uk/id/local-authority/30UE,Elections,1012,Governance,Printing,40043,"Printing, Stationery & General",5026,2014 - Transition Canvass Confirmation letters,19/09/2014,97877,"7,980.00",Revenue,Print Image Network,21171
Chorley Borough Council,http://statistics.data.gov.uk/id/local-authority/30UE,Unapportionable Central OHeads,1009,Policy & Performance,Publicity - Advertising,40157,Miscellaneous Expenses,5034,Large oversized bin as part of the cleaner Chorley campaign,10/09/2014,97424,"2,300.00",Revenue,Production Glassfibre,66377
Chorley Borough Council,http://statistics.data.gov.uk/id/local-authority/30UE,Homelessness,1075,Housing,External Contractor,40198,Miscellaneous Expenses,5034,"Concierge service at Cotswold Supported Housing, Cotswold Road, Chorley. Lancashire, PR7 3HW. ",10/09/2014,97574,"4,435.54",Revenue,Profile Security Ltd,58000
Chorley Borough Council,http://statistics.data.gov.uk/id/local-authority/30UE,Interest Payable on Debt,1020,Shared Service Arrangement,Interest Payable,9009,Interest Payments,5067,interest,29/09/2014,98075,"18,552.66",Revenue,Public Works Loans Board,21480
Chorley Borough Council,http://statistics.data.gov.uk/id/local-authority/30UE,Service Management & Support,1009,Streetscene & Leisure Contracts,Refuse Collection,20037,Cleaning and Domestic Supplies,5012,Charge for the disposal of waste for Chorley Council. (Please use this order No from 01/04/2014),17/09/2014,97691,550.00,Revenue,Quercia Ltd,19049
Chorley Borough Council,http://statistics.data.gov.uk/id/local-authority/30UE,Service Management & Support,1009,Streetscene & Leisure Contracts,Supplies-Grounds Maintenance,40025,"Equipment, Furniture & Materia",5023,Inscriptions for Memorial Stones,03/09/2014,97429,687.00,Revenue,Rawcliffe`s Of Chorley Ltd,17993
Chorley Borough Council,http://statistics.data.gov.uk/id/local-authority/30UE,Service Management & Support,1009,Streetscene & Leisure Contracts,Supplies-Grounds Maintenance,40025,"Equipment, Furniture & Materia",5023,30 Marker stones - Pre Purchased graves,12/09/2014,97644,485.00,Revenue,Rawcliffe`s Of Chorley Ltd,17993
Chorley Borough Council,http://statistics.data.gov.uk/id/local-authority/30UE,Democratic Represent and  Mgnt,1007,Streetscene & Leisure Contracts,Miscellaneous Expenses,40200,Miscellaneous Expenses,5034,"Legal fees in connection with Gillibrands Community Centre, Chorley.",17/09/2014,97777,375.00,Revenue,Redrow Homes (Lancashire) Ltd,19720
Chorley Borough Council,http://statistics.data.gov.uk/id/local-authority/30UE,Capital,Capital,HR & Org. Development,Main Contractor,3007,Capital Expenditure,Capital,Reward Gateway Employee Benefits software first year fee + system set up fee,10/09/2014,97642,"9,278.00",Capital,Reward Gateway (UK) Ltd,66814
Chorley Borough Council,http://statistics.data.gov.uk/id/local-authority/30UE,Central Support Services,1009,"Customer, ICT & Transactional",Computer Software-Purchase,40100,Communication and Computing,5028,NBS Landscape software - network licence Subscription for 12 months commencing 11th August 2014 3 licenses - 1st ,12/09/2014,97699,"1,175.00",Revenue,RIBA Enterprises,19747
Chorley Borough Council,http://statistics.data.gov.uk/id/local-authority/30UE,Service Management & Support,1009,Streetscene & Leisure Contracts,Hire Of Transport,30028,Contrct Hire & Operating Lease,5018,hire of quads,17/09/2014,97815,720.00,Revenue,Rigby Taylor Ltd,16299
Chorley Borough Council,http://statistics.data.gov.uk/id/local-authority/30UE,Service Management & Support,1009,Streetscene & Leisure Contracts,Supplies-Grounds Maintenance,40025,"Equipment, Furniture & Materia",5023,Eland 250g,24/09/2014,97951,291.00,Revenue,Rigby Taylor Ltd,16299
Chorley Borough Council,http://statistics.data.gov.uk/id/local-authority/30UE,Service Management & Support,1009,Streetscene & Leisure Contracts,Supplies-Grounds Maintenance,40025,"Equipment, Furniture & Materia",5023,Carriage,24/09/2014,97951,10.75,Revenue,Rigby Taylor Ltd,16299
Chorley Borough Council,http://statistics.data.gov.uk/id/local-authority/30UE,Flood Defence & Land Drainage,1046,Health Environment & Neighbourhoods,Alleygate Repair,40240,"Equipment, Furniture & Materia",5023,For Manufacture and install of Alley Gates and panel including extra post On Ward st. @3.5m,19/09/2014,97873,"1,555.00",Revenue,Rotaciser Ltd,21730
Chorley Borough Council,http://statistics.data.gov.uk/id/local-authority/30UE,Flood Defence & Land Drainage,1046,Health Environment & Neighbourhoods,Alleygate Repair,40240,"Equipment, Furniture & Materia",5023,Alley Gate Scheme Chorley Lancs. To Manufacturesupply and fit Gates and Posts at the following address,19/09/2014,97874,"21,214.00",Revenue,Rotaciser Ltd,21730
Chorley Borough Council,http://statistics.data.gov.uk/id/local-authority/30UE,Unapportionable Central OHeads,1009,"Customer, ICT & Transactional",Postages,40082,Communication and Computing,5028,Delivery other than addressed (po box 13),26/09/2014,97929,"1,950.00",Revenue,Royal Mail Group Plc,17522
Chorley Borough Council,http://statistics.data.gov.uk/id/local-authority/30UE,Flood Defence & Land Drainage,1046,Health Environment & Neighbourhoods,Games/Playing Field Equipment,40009,"Equipment, Furniture & Materia",5023,Range of arts materials - order placed by phone,12/09/2014,96807,339.47,Revenue,S & S Services,20880
Chorley Borough Council,http://statistics.data.gov.uk/id/local-authority/30UE,Service Management & Support,1009,Streetscene & Leisure Contracts,Diesel/Derv,30007,Direct Transport Costs,5016,Supply 8000 litres of Road diesel at price quoted via the chest,24/09/2014,97960,"8,420.00",Revenue,Samuel Cooke & Co Ltd,17173
Chorley Borough Council,http://statistics.data.gov.uk/id/local-authority/30UE,Economic Development,1096,Economic Development,Grants To Other Organisations,40127,Grants and Subscriptions,5031,Choose Chorley Grant,03/09/2014,97411,"10,000.00",Revenue,Service Sport Ltd,65601
Chorley Borough Council,http://statistics.data.gov.uk/id/local-authority/30UE,Economic Development,1096,Economic Development,Grants To Other Organisations,40127,Grants and Subscriptions,5031,starting business grant,24/09/2014,97966,250.00,Revenue,NAME REDACTED,67057
Chorley Borough Council,http://statistics.data.gov.uk/id/local-authority/30UE,Central Support Services,1009,"Customer, ICT & Transactional",Consultants` Fees,40077,Services,5027,Work on cemeteries specification - week ending 24/08/14 ,12/09/2014,97581,299.28,Revenue,Simon Daniel Booth,57624
Chorley Borough Council,http://statistics.data.gov.uk/id/local-authority/30UE,Central Support Services,1009,"Customer, ICT & Transactional",Consultants` Fees,40077,Services,5027,Work on cemeteries specification - week ending 31/08/14 ,17/09/2014,97849,350.88,Revenue,Simon Daniel Booth,57624
Chorley Borough Council,http://statistics.data.gov.uk/id/local-authority/30UE,Central Support Services,1009,"Customer, ICT & Transactional",Consultants` Fees,40077,Services,5027,Work on cemeteries specification - week ending 07/09/14 6h12m at 24 per hour,17/09/2014,97849,148.80,Revenue,Simon Daniel Booth,57624
Chorley Borough Council,http://statistics.data.gov.uk/id/local-authority/30UE,Economic Development,1096,Economic Development,Grants To Other Organisations,40127,Grants and Subscriptions,5031,Starting in Business Grant,12/09/2014,97558,250.00,Revenue,NAME REDACTED,66804
Chorley Borough Council,http://statistics.data.gov.uk/id/local-authority/30UE,Service Management & Support,1009,Streetscene & Leisure Contracts,Protective Clothing,40040,"Clothing, Uniforms and Laundry",5025,Red Polo Shirt c/w Chorley Council Logo. Product Code = HVPY.  Size -  medium,17/09/2014,97805,147.50,Revenue,Smart Image Workwear,21064
Chorley Borough Council,http://statistics.data.gov.uk/id/local-authority/30UE,Service Management & Support,1009,Streetscene & Leisure Contracts,Protective Clothing,40040,"Clothing, Uniforms and Laundry",5025,Red Polo Shirt c/w Chorley Council Logo. Product Code = HVPY.  Size -  large,17/09/2014,97805,88.50,Revenue,Smart Image Workwear,21064
Chorley Borough Council,http://statistics.data.gov.uk/id/local-authority/30UE,Service Management & Support,1009,Streetscene & Leisure Contracts,Protective Clothing,40040,"Clothing, Uniforms and Laundry",5025,Red Polo Shirt c/w Chorley Council Logo. Product Code = HVPY.  Size -  Xtra Large,17/09/2014,97805,88.50,Revenue,Smart Image Workwear,21064
Chorley Borough Council,http://statistics.data.gov.uk/id/local-authority/30UE,Service Management & Support,1009,Streetscene & Leisure Contracts,Protective Clothing,40040,"Clothing, Uniforms and Laundry",5025,Uneek Red Sweat Shirt c/w Chorley Council Logo. Product Code = SSUC203.  Size - medium,17/09/2014,97806,87.50,Revenue,Smart Image Workwear,21064
Chorley Borough Council,http://statistics.data.gov.uk/id/local-authority/30UE,Service Management & Support,1009,Streetscene & Leisure Contracts,Protective Clothing,40040,"Clothing, Uniforms and Laundry",5025,Uneek Red Sweat Shirt c/w Chorley Council Logo. Product Code = SSUC203.  Size - large,17/09/2014,97806,87.50,Revenue,Smart Image Workwear,21064
Chorley Borough Council,http://statistics.data.gov.uk/id/local-authority/30UE,Service Management & Support,1009,Streetscene & Leisure Contracts,Protective Clothing,40040,"Clothing, Uniforms and Laundry",5025,Uneek Red Sweat Shirt c/w Chorley Council Logo. Product Code = SSUC203.  Size - xtra large,17/09/2014,97806,87.50,Revenue,Smart Image Workwear,21064
Chorley Borough Council,http://statistics.data.gov.uk/id/local-authority/30UE,Democratic Represent and  Mgnt,1007,Streetscene & Leisure Contracts,Uniforms,40039,"Clothing, Uniforms and Laundry",5025,Staff uniforms for Astley Hall,24/09/2014,97924,269.70,Revenue,Smart Image Workwear,21064
Chorley Borough Council,http://statistics.data.gov.uk/id/local-authority/30UE,Service Management & Support,1009,Streetscene & Leisure Contracts,Tools & Equipment - Purchase,40003,"Equipment, Furniture & Materia",5023,Garden Digging Spade.   28`` x 7 1/2`` x 11 1/2``.  Product Code = 1180NB,03/09/2014,97427,84.50,Revenue,Spalding (UK) Limited,20264
Chorley Borough Council,http://statistics.data.gov.uk/id/local-authority/30UE,Service Management & Support,1009,Streetscene & Leisure Contracts,Tools & Equipment - Purchase,40003,"Equipment, Furniture & Materia",5023,Garden Fork 28`` x 7 1/2`` x 11 1/2``.  Product Code = 1680NB,03/09/2014,97427,87.40,Revenue,Spalding (UK) Limited,20264
Chorley Borough Council,http://statistics.data.gov.uk/id/local-authority/30UE,Service Management & Support,1009,Streetscene & Leisure Contracts,Tools & Equipment - Purchase,40003,"Equipment, Furniture & Materia",5023,"Lawn Rake, Sprinbok, stainless steel 20 teeth.  Product Code = 9128NL",03/09/2014,97427,139.80,Revenue,Spalding (UK) Limited,20264
Chorley Borough Council,http://statistics.data.gov.uk/id/local-authority/30UE,Capital,Capital,Streetscene & Leisure Contracts,Main Contractor,3007,Capital Expenditure,Capital,Work to Astley Farmhouse,03/09/2014,97409,"41,833.37",Capital,Speakman Contractors Ltd,54838
Chorley Borough Council,http://statistics.data.gov.uk/id/local-authority/30UE,Unapportionable Central OHeads,1009,Transformation Management,Asset Maintenance Fund,20012,Repairs Maintenance & Alts,5005,Town Hall,26/09/2014,97976,"24,915.79",Revenue,Speakman Contractors Ltd,54838
Chorley Borough Council,http://statistics.data.gov.uk/id/local-authority/30UE,Central Support Services,1009,HR & Org. Development,HR Approved Training Expenses,17001,Indirect Employee Expenses,5002,Outstanding amount relating to First Aid Training,05/09/2014,97408,904.00,Revenue,St John Ambulance Lancashire HQ,19136
Chorley Borough Council,http://statistics.data.gov.uk/id/local-authority/30UE,Flood Defence & Land Drainage,1046,Health Environment & Neighbourhoods,Hire Of Transport,30028,Contrct Hire & Operating Lease,5018,To provide transport for Camp Glasgow travel contribution as agreed,12/09/2014,97634,300.00,Revenue,Street Games UK LTD,22465
Chorley Borough Council,http://statistics.data.gov.uk/id/local-authority/30UE,Unapportionable Central OHeads,1009,Transformation Management,Asset Maintenance Fund,20012,Repairs Maintenance & Alts,5005,To fit towel holders all as per our quotation in the sum of 270,17/09/2014,97670,342.00,Revenue,Stringfellow Bldg Cntrctrs Ltd,17893
Chorley Borough Council,http://statistics.data.gov.uk/id/local-authority/30UE,Capital,Capital,Streetscene & Leisure Contracts,Other Capital Related Fees,3024,Capital Expenditure,Capital,Hand excavated trial pits to expose an electricity cable 2 No. x max. 1.0m Factual Information Including photographs,03/09/2014,97470,275.00,Capital,Sub Surface North West Limited,55367
Chorley Borough Council,http://statistics.data.gov.uk/id/local-authority/30UE,Surplus or Deficit on Trading,1019,Governance,Miscellaneous Expenses,40200,Miscellaneous Expenses,5034,"Walk over and desk study work at Flat Iron Car Park, Chorley",10/09/2014,97571,795.00,Revenue,Sub Surface North West Limited,55367
Chorley Borough Council,http://statistics.data.gov.uk/id/local-authority/30UE,Community Development,1097,Policy & Performance,Core Funding Grants,40133,Grants and Subscriptions,5031,Small community funding 2014/15,12/09/2014,96841,500.00,Revenue,The Travelling Mulberries,66096
Chorley Borough Council,http://statistics.data.gov.uk/id/local-authority/30UE,Unapportionable Central OHeads,1009,Chief Executives Office,Postages,40082,Communication and Computing,5028,Mail collection for all departments,03/09/2014,97417,492.75,Revenue,TNT Post North Ltd,21187
Chorley Borough Council,http://statistics.data.gov.uk/id/local-authority/30UE,Unapportionable Central OHeads,1009,Chief Executives Office,Postages,40082,Communication and Computing,5028,Mail collection for all departments,05/09/2014,97485,688.44,Revenue,TNT Post North Ltd,21187
Chorley Borough Council,http://statistics.data.gov.uk/id/local-authority/30UE,Unapportionable Central OHeads,1009,Chief Executives Office,Postages,40082,Communication and Computing,5028,Mail collection for all departments,17/09/2014,97828,497.24,Revenue,TNT Post North Ltd,21187
Chorley Borough Council,http://statistics.data.gov.uk/id/local-authority/30UE,Unapportionable Central OHeads,1009,Chief Executives Office,Postages,40082,Communication and Computing,5028,Mail collection for all departments,17/09/2014,97829,530.87,Revenue,TNT Post North Ltd,21187
Chorley Borough Council,http://statistics.data.gov.uk/id/local-authority/30UE,Unapportionable Central OHeads,1009,Chief Executives Office,Postages,40082,Communication and Computing,5028,Mail collection for all departments,24/09/2014,97945,588.62,Revenue,TNT Post North Ltd,21187
Chorley Borough Council,http://statistics.data.gov.uk/id/local-authority/30UE,Service Management & Support,1009,Streetscene & Leisure Contracts,Grounds Maintenance Contractor,20043,Grounds Maintenance Costs,5013,Work completed ,05/09/2014,97507,680.00,Revenue,Treescape North West Ltd,17688
Chorley Borough Council,http://statistics.data.gov.uk/id/local-authority/30UE,Service Management & Support,1009,Streetscene & Leisure Contracts,Grounds Maintenance Contractor,20043,Grounds Maintenance Costs,5013,Works completed,24/09/2014,97854,420.00,Revenue,Treescape North West Ltd,17688
Chorley Borough Council,http://statistics.data.gov.uk/id/local-authority/30UE,Service Management & Support,1009,Streetscene & Leisure Contracts,Grounds Maintenance Contractor,20043,Grounds Maintenance Costs,5013,Work completed - various sites,24/09/2014,97855,"4,000.00",Revenue,Treescape North West Ltd,17688
Chorley Borough Council,http://statistics.data.gov.uk/id/local-authority/30UE,Service Management & Support,1009,Streetscene & Leisure Contracts,Petrol,30005,Direct Transport Costs,5016,Fuel Charges for August,10/09/2014,97650,702.54,Revenue,Uk Fuels Ltd,57996
Chorley Borough Council,http://statistics.data.gov.uk/id/local-authority/30UE,Flood Defence & Land Drainage,1046,Streetscene & Leisure Contracts,Petrol,30005,Direct Transport Costs,5016,Fuel Charges for August,10/09/2014,97650,43.88,Revenue,Uk Fuels Ltd,57996
Chorley Borough Council,http://statistics.data.gov.uk/id/local-authority/30UE,Democratic Represent and  Mgnt,1007,Streetscene & Leisure Contracts,Use Of Transport - Mayoral Car,30015,Transport Recharges,5017,Fuel Charges for August,10/09/2014,97650,30.84,Revenue,Uk Fuels Ltd,57996
Chorley Borough Council,http://statistics.data.gov.uk/id/local-authority/30UE,Unapportionable Central OHeads,1009,HR & Org. Development,Operational Wages,10200,Direct Employee Expenses,5001,Levels 1-5,24/09/2014,97930,"1,424.57",Revenue,UK Healthcare (BDHSC),17241
Chorley Borough Council,http://statistics.data.gov.uk/id/local-authority/30UE,Control Accounts,Control,HR & Org. Development,General Balances,100,Balance Sheet,Balance,Top Ups,24/09/2014,97930,443.99,Revenue,UK Healthcare (BDHSC),17241
Chorley Borough Council,http://statistics.data.gov.uk/id/local-authority/30UE,Unapportionable Central OHeads,1009,"Customer, ICT & Transactional",Postages,40082,Communication and Computing,5028,Imail Eco Business mono letters - hybrid,10/09/2014,97579,709.16,Revenue,UKMAIL Ltd (Mail),57758
Chorley Borough Council,http://statistics.data.gov.uk/id/local-authority/30UE,Unapportionable Central OHeads,1009,"Customer, ICT & Transactional",Postages,40082,Communication and Computing,5028,Imail Eco Business mono letters - hybrid,10/09/2014,97582,680.07,Revenue,UKMAIL Ltd (Mail),57758
Chorley Borough Council,http://statistics.data.gov.uk/id/local-authority/30UE,Unapportionable Central OHeads,1009,"Customer, ICT & Transactional",Postages,40082,Communication and Computing,5028,Imail Eco Business mono letters - hybrid,17/09/2014,97775,535.66,Revenue,UKMAIL Ltd (Mail),57758
Chorley Borough Council,http://statistics.data.gov.uk/id/local-authority/30UE,Control Accounts,Control,Shared Service Arrangement,General Balances,100,Balance Sheet,Balance,Salary Deduction August 2014,17/09/2014,97867,"1,418.67",Revenue,Unify Credit Union Ltd,55509
Chorley Borough Council,http://statistics.data.gov.uk/id/local-authority/30UE,Democratic Represent and  Mgnt,1007,Streetscene & Leisure Contracts,Water - Metered Supplies,20022,Water Services,5009,Astley Hall,10/09/2014,97514,347.87,Revenue,United Utilities Water Plc,17926
Chorley Borough Council,http://statistics.data.gov.uk/id/local-authority/30UE,Democratic Represent and  Mgnt,1007,Streetscene & Leisure Contracts,Water - Metered Supplies,20022,Water Services,5009,Tatton Recr Grd Worthy Street,05/09/2014,97515,736.68,Revenue,United Utilities Water Plc,17926
Chorley Borough Council,http://statistics.data.gov.uk/id/local-authority/30UE,Parking Services,1066,Streetscene & Leisure Contracts,Water - Unmetered Supply,20023,Water Services,5009,"Short Stay Car Park, Fleet Street",05/09/2014,97561,278.18,Revenue,United Utilities Water Plc,17926
Chorley Borough Council,http://statistics.data.gov.uk/id/local-authority/30UE,Homelessness,1075,Housing,Water - Unmetered Supply,20023,Water Services,5009,Cotswold House,05/09/2014,97562,"1,541.03",Revenue,United Utilities Water Plc,17926
Chorley Borough Council,http://statistics.data.gov.uk/id/local-authority/30UE,Democratic Represent and  Mgnt,1007,Streetscene & Leisure Contracts,Water - Metered Supplies,20022,Water Services,5009,Eaves Green Water,10/09/2014,97600,413.03,Revenue,United Utilities Water Plc,17926
Chorley Borough Council,http://statistics.data.gov.uk/id/local-authority/30UE,Unapportionable Central OHeads,1009,Governance,Water - Metered Supplies,20022,Water Services,5009,Town Hall Water Services,17/09/2014,97780,"1,329.68",Revenue,United Utilities Water Plc,17926
Chorley Borough Council,http://statistics.data.gov.uk/id/local-authority/30UE,Homelessness,1075,Housing,Water - Metered Supplies,20022,Water Services,5009,,26/09/2014,97982,930.38,Revenue,United Utilities Water Plc,17926
Chorley Borough Council,http://statistics.data.gov.uk/id/local-authority/30UE,Economic Development,1096,Economic Development,Grants To Other Organisations,40127,Grants and Subscriptions,5031,Starting in Business Grant,12/09/2014,97560,250.00,Revenue,Vets 4 Vets Recruitment Ltd,66806
Chorley Borough Council,http://statistics.data.gov.uk/id/local-authority/30UE,Flood Defence & Land Drainage,1046,Health Environment & Neighbourhoods,Telephones - Rentals,40083,Communication and Computing,5028,CCTV from Chorley Police Station to Chncery Road Astley Village,03/09/2014,97475,"2,400.00",Revenue,Virgin Media Payments Ltd,17632
Chorley Borough Council,http://statistics.data.gov.uk/id/local-authority/30UE,Unapportionable Central OHeads,1009,"Customer, ICT & Transactional",Telephones - Other,40085,Communication and Computing,5028,Telephony Charges,17/09/2014,97833,"1,062.58",Revenue,Virgin Media Payments Ltd,17632
Chorley Borough Council,http://statistics.data.gov.uk/id/local-authority/30UE,Unapportionable Central OHeads,1009,HR & Org. Development,Service Fees,40056,Services,5027,8 Counselling sessions for staff,10/09/2014,97647,280.00,Revenue,Wendy Marsh Counselling & Supervision Services,64551
Chorley Borough Council,http://statistics.data.gov.uk/id/local-authority/30UE,Democratic Represent and  Mgnt,1007,Streetscene & Leisure Contracts,Consultants` Fees,40077,Services,5027,Curatorial consultant`s fees for July and August 2014.,10/09/2014,97578,874.95,Revenue,Whittle and Draper Fine Art,52271
Chorley Borough Council,http://statistics.data.gov.uk/id/local-authority/30UE,Service Management & Support,1009,Streetscene & Leisure Contracts,Vehicle Maintenance,30045,Direct Transport Costs,5016,SDupply and fit new clutch kit bearing and clutch fork as requested in NJ10OTW,12/09/2014,97643,599.00,Revenue,Wrekamendid Services Ltd,21188
Chorley Borough Council,http://statistics.data.gov.uk/id/local-authority/30UE,Service Management & Support,1009,Streetscene & Leisure Contracts,Vehicle Maintenance,30045,Direct Transport Costs,5016,Carryout repairs to brakes and steering system Welding repairs to engine mounting bracket as required on  MX06UKJ,24/09/2014,97926,584.00,Revenue,Wrekamendid Services Ltd,21188
